Cogmind - Beta 17 @@@ ROGUE MODE // 2026.07.28 @ 04:49:20 Player: KURIIRI Result: Establishing 0b11! Performance ------------- Evolutions (9) 4500 Regions Visited (26) 5200 Robots Destroyed (446) 2230 Value Destroyed (26740) 26740 Prototype IDs (372) 7440 Alien Tech Used (1) 200 Bonus (60389) 60389 TOTAL SCORE: 106699 Bonus ------- High Alert Combat Kills 3669 Follower Combat Kills 12383 Prayed to X0-1V1 5000 Major X0-1V1 Interference 9200 Entered Garrisons 1800 Used RIF Installer 6000 Destroyed MAIN.C Guards 500 Met MAIN.C 5000 Destroyed MAIN.C Shell 5000 Destroyed MAIN.C 10000 Win 3000 Friendly Fire -1163 Cogmind --------- Core Integrity 1264/1385 Matter 300/300 Energy 1711/1725 System Corruption 5% Temperature Cool (6) Movement Treading (185) Ox1 Location 0b11 Command Parts ------- > --- POWER (3) -------- Compact Particle Reactor Quantum Reactor Zero-point Reactor > --- PROPULSION (5) --- Biometal Heavy Treads Biometal Heavy Treads (fused) Experimental Biometal Medium Treads > --- UTILITY (14) ----- Advanced Power Amplifier Advanced Cooling System Huge Storage Unit Experimental Optical Array Advanced Targeting Computer Experimental Core Analyzer Experimental Armor Integrity Analyzer Advanced Phase Shifter Layered Heavy Armor Plating Advanced Remote Force Field Relay Coupler [C] (55) Relay Coupler [C] (39) > --- WEAPON (4) ------- Multirail Multirail Multirail Multirail > --- INVENTORY (25) --- Improved Heavy Siege Treads High-density Centrium Heavy Treads Experimental Terrain Scanner Experimental Terrain Scanner Experimental Core Analyzer Improved Heavy Armor Plating Layered Heavy Armor Plating Thermal Barrier Advanced Remote Force Field Gamma Rifle Compact HERF Cannon Enhanced Nova Cannon Hypervelocity Railgun Enhanced Hardcell Cannon Graviton Cannon Neutron Missile Launcher Chaos Jack (34) Advanced Remote Datajack Guided Remote Datajack Gravity Flail Peak State ------------ > --- POWER ------------ Quantum Reactor Quantum Reactor Zero-point Reactor > --- PROPULSION ------- Biometal Heavy Treads Biometal Heavy Treads Experimental Biometal Medium Treads > --- UTILITY ---------- Advanced Power Amplifier Advanced Cooling System Huge Storage Unit Experimental Optical Array Advanced Targeting Computer Experimental Core Analyzer Experimental Armor Integrity Analyzer Advanced Particle Accelerator Improved Utility Shielding Layered Heavy Armor Plating Advanced Remote Force Field Relay Coupler [C] Relay Coupler [C] > --- WEAPON ----------- Multirail Multirail Multirail Multirail > --- INVENTORY -------- Quantum Reactor Improved Heavy Siege Treads High-density Centrium Heavy Treads Improved Matter Compressor Experimental Core Analyzer Advanced Phase Shifter Improved Heavy Armor Plating Layered Heavy Armor Plating Thermal Barrier Advanced Remote Force Field Compact HERF Cannon Enhanced Nova Cannon Enhanced Nova Cannon Railgun Enhanced Hardcell Cannon Graviton Cannon Graviton Cannon Neutron Missile Launcher Advanced Remote Datajack Advanced Remote Datajack Gravity Flail [Rating: 240] Favorites ----------- Power Quantum Reactor Engine Light Ion Engine Power Core Fission Core Reactor Quantum Reactor Propulsion Improved Heavy Treads Treads Improved Heavy Treads Leg Aluminum Leg Wheel Centrium Wheel Utility Relay Coupler [C] Device Remote Force Field Storage Huge Storage Unit Processor Advanced Targeting Computer Hackware Relay Coupler [C] Protection Layered Heavy Armor Plating Weapon Advanced Beam Cannon Energy Gun Enhanced Quantum Rifle Energy Cannon Advanced Beam Cannon Ballistic Gun Multirail Ballistic Cannon Advanced Assault Cannon Launcher Precision Rocket Launcher Special Weapon Remote Datajack Impact Weapon Gravity Flail Slashing Weapon Greatsword Special Melee Weapon Chaos Jack Build | -11 -10 -9 -9 -8 -8 -8 -8 -7 -7 -7 -7 -6 -6 -5 -5 -4 -4 -4 -4 -3 -3 -2 -2 -2 -1 -1 ------- Run | Yrd Mat Mat Min Mat Gar Mat Gar Fac Gar Fac Gar Fac Gar Fac Gar Fac Was Fac Gar Res Gar Res Tes Gar Acc Com Slots Evolved 18 | . . 2 . 2 . . . 2 . . . 2 . 2 . 2 . . . 2 . 2 . . 2 . Power 1 | . . . . . . . . . . . . . . . . . . . . . . 1 . . . . Propulsion 4 | . . 1 . 1 . . . . . . . 1 . . . . . . . . . . . . 1 . Utility 11 | . . . . 1 . . . 2 . . . 1 . 1 . 2 . . . 2 . 1 . . 1 . Weapon 2 | . . 1 . . . . . . . . . . . 1 . . . . . . . . . . . . Parts Attached 346 | 3 10 5 2 18 2 2 10 6 15 8 9 11 23 21 9 5 5 6 12 29 26 39 3 27 5 35 Power 33 | . . . . 2 . . 2 . 3 1 2 . 1 2 . 1 2 . 1 3 1 7 . 1 1 3 Engine 4 | . . . . 2 . . . . . 1 . . . 1 . . . . . . . . . . . . Core 7 | . . . . . . . 2 . 2 . 2 . . 1 . . . . . . . . . . . . Reactor 22 | . . . . . . . . . 1 . . . 1 . . 1 2 . 1 3 1 7 . 1 1 3 Propulsion 55 | 2 2 3 1 4 1 . 3 . 2 . . 2 4 3 2 1 1 . 3 2 7 7 1 . 1 3 Treads 47 | 2 1 3 1 4 1 . 2 . 2 . . 2 4 2 . 1 1 . 3 . 7 7 1 . 1 2 Leg 2 | . . . . . . . 1 . . . . . . . 1 . . . . . . . . . . . Wheel 6 | . 1 . . . . . . . . . . . . 1 1 . . . . 2 . . . . . 1 Hover . | . . . . . . . . . . . . . . . . . . . . . . . . . . . Flight . | . . . . . . . . . . . . . . . . . . . . . . . . . . . Utility 182 | 1 4 . . 5 1 1 3 4 9 5 5 8 11 15 7 2 1 6 6 16 14 18 1 20 3 16 Device 53 | 1 1 . . . 1 . 1 2 1 1 3 3 4 5 2 . . 2 1 6 4 4 . 6 1 4 Storage 7 | . 2 . . 1 . . . . . . . . . 1 . 1 . . 1 . . . . . . 1 Processor 11 | . . . . . . . . 1 . . . . . 1 2 . 1 . . 1 . 1 . 3 . 1 Hackware 89 | . . . . 1 . 1 2 1 7 3 1 4 6 6 3 1 . 3 4 8 8 10 1 9 2 8 Protection 22 | . 1 . . 3 . . . . 1 1 1 1 1 2 . . . 1 . 1 2 3 . 2 . 2 Artifact . | . . . . . . . . . . . . . . . . . . . . . . . . . . . Weapon 76 | . 4 2 1 7 . 1 2 2 1 2 2 1 7 1 . 1 1 . 2 8 4 7 1 6 . 13 Energy Gun 9 | . . 1 . . . . 1 . . 1 . . 2 . . . . . . 1 1 1 . 1 . . Energy Cannon 17 | . . . . 3 . . . 1 . . . . . . . . . . 1 4 1 1 . 1 . 5 Ballistic Gun 9 | . . . . 1 . . . . . . . 1 . . . . . . . 1 1 . . . . 5 Ballistic Cannon 19 | . 3 1 . 3 . . . 1 1 1 1 . 2 . . . . . . . . 4 1 1 . . Launcher 8 | . 1 . 1 . . . 1 . . . . . . . . 1 . . 1 . . . . 2 . 1 Special Weapon 10 | . . . . . . 1 . . . . 1 . 2 1 . . . . . 2 1 1 . . . 1 Impact Weapon 1 | . . . . . . . . . . . . . . . . . . . . . . . . 1 . . Slashing Weapon 2 | . . . . . . . . . . . . . 1 . . . 1 . . . . . . . . . Piercing Weapon . | . . . . . . . . . . . . . . . . . . . . . . . . . . . Special Melee Weapon 1 | . . . . . . . . . . . . . . . . . . . . . . . . . . 1 Unidentified Prototypes 47 | . 1 1 . 3 . . . 1 . 1 1 1 2 2 . 2 1 . . 6 1 9 2 5 . 8 Corrupted Parts 2 | . . . . . . . . . . . . . . 1 . . . . . . . . . . . 1 System Corruption 2 | . . . . . . . . . . . . . . 1 . . . . . . . . . . . 1 Parts Lost 32 | . . . . . 1 . 1 . 2 . 4 . 2 . . . . . . 9 4 2 . 2 . 5 Power 5 | . . . . . . . . . . . 1 . 1 . . . . . . 2 1 . . . . . Propulsion 6 | . . . . . . . 1 . 1 . 1 . . . . . . . . 1 1 . . . . 1 Utility 15 | . . . . . 1 . . . 1 . 1 . 1 . . . . . . 3 1 2 . 2 . 3 Weapon 6 | . . . . . . . . . . . 1 . . . . . . . . 3 1 . . . . 1 Highest Loss Streak 4 | . . . . . 1 . 1 . 2 . 3 . 2 . . . . . . 4 2 1 . 1 . 2 To Critical Strikes 1 | . . . . . . . . . . . . . . . . . . . . 1 . . . . . . Average Backups 19 | 5 13 14 15 18 19 19 19 19 19 17 17 17 16 19 21 22 22 22 22 21 23 22 22 22 21 20 Power . | 1 . . . . . . . . . . 1 2 . . . . . 1 1 . . . 4 2 2 1 Propulsion 2 | 3 3 3 4 3 3 3 3 3 2 2 1 2 1 2 2 2 2 3 3 3 4 3 2 1 1 1 Utility 11 | . 4 7 7 8 8 8 9 11 12 9 8 8 8 12 14 15 14 14 14 13 14 13 10 13 15 10 Weapon 4 | 1 4 3 4 5 7 6 5 4 3 6 5 4 3 3 2 3 3 2 1 2 3 3 5 3 2 5 Tool/Special . | . . . . . . . . . . . . . . . . . . . . . . . . . . . Unused Backups 74 | . 7 . . 5 1 1 3 . 1 1 4 2 9 . 5 1 4 1 3 3 6 1 . 4 2 10 Power 6 | . . . . 2 . . . . . . 1 . . . . . . . . 1 1 . . 1 . . Propulsion 7 | . . . . 1 . . . . . . . . 2 . . . . . . . 1 1 . . 1 1 Utility 45 | . 3 . . 1 1 . 3 . 1 1 3 2 7 . 4 1 . . 3 1 4 . . 3 1 6 Weapon 15 | . 4 . . 1 . 1 . . . . . . . . 1 . 4 1 . . . . . . . 3 Tool/Special 1 | . . . . . . . . . . . . . . . . . . . . 1 . . . . . . Average Slot Usage (%) 85 | . 100 99 100 99 97 91 99 97 92 87 84 86 79 77 77 77 80 80 76 73 79 81 79 83 87 87 Engine 2 | . 14 11 11 9 8 8 4 . . 3 3 . . 1 5 2 . . . . . . . . . . Core 2 | . . . . . . . 3 7 7 7 10 12 7 2 . . . . . . . . . . . . Reactor 5 | . . . . . . . . . . 3 . . 4 5 5 7 10 10 10 7 8 11 12 10 11 11 Treads 19 | . 27 32 33 35 35 33 32 28 27 24 20 24 18 16 16 15 15 15 15 12 14 12 12 12 10 10 Device 8 | . 4 11 11 9 8 8 7 12 7 3 4 6 5 4 13 10 5 8 12 10 13 7 12 10 3 10 Storage 6 | . 14 11 11 9 8 8 8 7 7 7 7 6 6 5 5 7 10 6 5 4 4 4 4 4 3 3 Processor 2 | . . . . . . . . 5 1 . . . . . . . 4 5 4 . . . . 6 11 12 Hackware 15 | . . . . . . . 8 11 15 16 16 17 18 22 13 20 20 20 14 23 21 26 16 20 25 16 Protection 5 | . 9 . . 9 8 8 8 2 4 7 7 6 5 6 5 5 5 5 5 3 2 4 8 3 2 4 Energy Cannon 3 | . . . . 7 24 22 19 3 1 . . . . . . . . . . 1 4 3 3 3 3 1 Ballistic Gun 1 | . 9 . . . . . . . . . . . . . . . . . . . 1 . . . . 5 Ballistic Cannon 6 | . 18 32 32 19 1 1 . 13 14 7 7 5 5 4 5 5 5 5 5 2 . 3 . 3 5 3 Special Weapon 3 | . . . . . . . 1 . 3 7 6 6 2 5 4 5 5 5 4 3 3 3 4 4 3 1 Peak Build Rating 240 | 7 23 27 27 45 44 36 45 58 70 71 75 86 101 114 126 141 150 153 163 174 167 198 200 205 218 240 Average Rating 112 | 6 10 25 26 40 33 34 37 53 52 66 66 81 93 107 120 131 144 144 151 163 153 174 192 192 217 219 On Entrance 97 | 6 7 23 26 27 42 34 34 40 55 70 63 75 84 97 108 124 141 147 143 163 154 161 191 190 204 218 Avg Prop Armor Cover (%) 7 | . 11 . . . . . . . . . . . . . . . 6 . . 16 20 9 . 3 . 2 Naked Turns . | . . . . . . . . . . . . . . . . . . . . . . . . . . . Heaviest Build 225 | 15 40 38 38 75 76 74 74 81 104 109 105 106 127 163 161 168 168 172 178 171 172 225 218 224 210 222 Greatest Support 240 | 40 40 60 63 85 87 87 87 84 127 127 107 149 180 180 180 180 180 180 230 230 225 240 240 240 240 240 Greatest Overweight (x) 6 | . 2 . . . . . 1 . 1 1 1 . . . . . 1 . . 4 4 6 1 1 . 1 Average Overweight (x) . | . . . . . . . . . . . . . . . . . . . . . . . . . . . Largest Inventory Capacity 25 | 8 15 15 15 20 20 20 20 20 20 20 20 20 20 25 25 25 25 25 25 25 25 25 25 25 25 25 Average Capacity 22 | 8 13 15 15 18 20 20 20 20 20 20 20 20 20 23 25 25 25 25 25 25 25 25 25 25 25 25 Most Carried 25 | 6 15 15 15 20 20 20 20 20 20 20 20 20 20 23 25 25 25 25 25 25 25 25 25 25 25 25 Average Carried 21 | 5 13 13 15 18 19 19 19 19 19 19 19 18 18 20 24 24 24 24 24 22 24 23 24 24 24 24 Final Capacity 25 | 8 15 15 15 20 20 20 20 20 20 20 20 20 20 25 25 25 25 25 25 25 25 25 25 25 25 25 Final Carried 25 | 5 15 15 15 19 20 19 20 20 19 20 20 20 20 23 25 25 25 22 25 25 25 25 24 25 25 24 Class Distribution -------------------- 51% | Botlord-Tank 16% | Botlord-Mutant 10% | Tank 5% | Bothacker-Tank 5% | Mutant 4% | Bothacker-Mutant 3% | Scavenger-Tank Dominant Class ---------------- Mutant | -10/Materials Gunner | -9/Materials Gunner | -9/Mines Tank | -8/Materials Tank | -8/Garrison Tank | -8/Materials Bothacker-Tank | -8/Garrison Bothacker-Tank | -7/Factory Botlord-Tank | -7/Garrison Bothacker-Mutant | -7/Factory Botlord-Mutant | -7/Garrison Botlord-Mutant | -6/Factory Botlord-Mutant | -6/Garrison Botlord-Tank | -5/Factory Botlord-Tank | -5/Garrison Botlord-Tank | -4/Factory Botlord-Tank | -4/Waste Botlord-Tank | -4/Factory Botlord-Tank | -4/Garrison Botlord-Tank | -3/Research Botlord-Tank | -3/Garrison Botlord-Tank | -2/Research Botlord-Tank | -2/Testing Botlord-Tank | -2/Garrison Botlord-Tank | -1/Access Botlord-Tank | -1/Command Resources | -11 -10 -9 -9 -8 -8 -8 -8 -7 -7 -7 -7 -6 -6 -5 -5 -4 -4 -4 -4 -3 -3 -2 -2 -2 -1 -1 ----------- Run | Yrd Mat Mat Min Mat Gar Mat Gar Fac Gar Fac Gar Fac Gar Fac Gar Fac Was Fac Gar Res Gar Res Tes Gar Acc Com Matter Collected 22812 | 223 636 314 102 1138 136 632 551 158 1280 558 1427 1055 2223 1204 877 375 723 390 1270 1297 935 1572 . 1534 783 1419 Remotely . | . . . . . . . . . . . . . . . . . . . . . . . . . . . Salvage Created 19921 | 122 697 375 60 597 702 469 1224 144 606 331 579 605 1562 906 322 177 960 352 510 1761 1581 2058 . 660 141 2420 Parts 844 | 6 52 27 4 33 45 31 74 10 30 9 35 31 61 31 15 11 7 15 15 62 61 70 . 27 4 78 Haulers Intercepted 6 | . 2 2 . . . 1 . . . . . . . . . . . . . 1 . . . . . . Recyclers Shooed 23 | . 3 . . . . . . 1 . 1 . 1 . . . 2 . 1 . 5 . 7 . . . 2 Parts Field Recycled . | . . . . . . . . . . . . . . . . . . . . . . . . . . . Retrieved Matter . | . . . . . . . . . . . . . . . . . . . . . . . . . . . Parts Self-Destructed . | . . . . . . . . . . . . . . . . . . . . . . . . . . . Prevented . | . . . . . . . . . . . . . . . . . . . . . . . . . . . Parts Restored . | . . . . . . . . . . . . . . . . . . . . . . . . . . . Kills | -11 -10 -9 -9 -8 -8 -8 -8 -7 -7 -7 -7 -6 -6 -5 -5 -4 -4 -4 -4 -3 -3 -2 -2 -2 -1 -1 ------- Run | Yrd Mat Mat Min Mat Gar Mat Gar Fac Gar Fac Gar Fac Gar Fac Gar Fac Was Fac Gar Res Gar Res Tes Gar Acc Com Combat Hostiles Destroyed 359 | . 19 9 3 11 25 7 23 2 24 2 14 12 29 13 8 3 4 7 17 28 17 26 . 16 3 37 Melee 2 | . . . . . . . . . . . . . . 1 . . . . . . . . . 1 . . Guns 18 | . 5 . . . . . 1 . . . . . . . . . . . . 1 . 2 . . . 9 Cannons 255 | . 11 6 . 11 21 7 22 2 12 2 14 5 20 12 5 3 4 7 7 18 17 21 . 13 3 12 AOE 78 | . 3 3 3 . 3 . . . 12 . . 7 9 . 3 . . . 9 6 . 3 . 1 . 16 Classes Destroyed 25 | 2 6 2 . 1 4 1 2 . 1 . . . 2 . . . 1 . 1 . . . . 1 . 1 Worker 17 | . 1 . . . . 1 . . . 1 . 2 . 2 . . . 1 . 3 . 2 . . 1 3 Builder 9 | . . 2 . . . 2 . . . . . . . 2 . . . . . 1 . 2 . . . . Tunneler 5 | 1 . 1 . . . 1 . . . . . . . . . . . . . 2 . . . . . . Hauler 6 | . 2 2 . . . 1 . . . . . . . . . . . . . 1 . . . . . . Recycler 24 | 1 1 1 1 1 . . . 1 . 4 . 1 . 3 . . . 1 . 2 . 6 . . . 1 Mechanic 1 | . . . . . . . 1 . . . . . . . . . . . . . . . . . . . Operator 5 | . 1 . . 1 . . . 1 . . . 1 . . . . . . . . . 1 . . . . Watcher 10 | . 3 . . 1 . 1 1 . . 1 . . . . . . . . . 1 . 1 . . . 1 Swarmer 85 | . 6 3 3 . 12 . . . 12 . . 7 7 . . . . . 11 5 3 5 . 3 . 8 Cutter 12 | . . . . . 3 . 2 . . . 3 . . . . . . . . . 4 . . . . . Saboteur 5 | . . . . . . . . . . . . . 4 1 . . . . . . . . . . . . Grunt 82 | . 13 2 . 6 . 3 3 . 3 . . 1 11 6 4 1 . 1 5 5 2 7 . 2 2 5 Brawler 9 | . . . . . 3 . . . 2 . 2 1 . . . . . . . 1 . . . . . . Duelist 3 | . . . . . 1 . 1 . . . . . . . . . . . . . . 1 . . . . Protector 2 | . . . . . . . . . . . . . . . . . . . . . . . . . . 2 Sentry 48 | . . 4 . 4 5 3 13 1 . . 3 . 3 . . . . . . . 3 2 . 6 . 1 Specialist 9 | . . . . . . . 2 . 1 . 1 . . . . . . . . 3 . . . . . 2 Hunter 47 | . . . . . . 1 1 1 2 1 4 1 . 4 4 1 . 3 . 9 4 5 . 1 . 5 Programmer 45 | . . . . . 1 . 1 . 4 1 1 2 2 2 . 1 . 3 . 4 3 5 . 4 1 10 Heavy 3 | . . . . 1 . . . . . . . . . . . . . . . . . 2 . . . . Q-Series 1 | . . . . . . . . . . . . . . . . . . . . . . . . 1 . . Behemoth 2 | . . . . . . . . . . . . . . . . . . . 2 . . . . . . . Compactor 4 | . . . . . . . . . . . . . . . . . 4 . . . . . . . . . Combat Programmer 2 | . . . . . . . . . . . . . . . . . . . . . . . . . . 2 Striker 2 | . . . . . . . . . . . . . 2 . . . . . . . . . . . . . Thug 2 | . . . . . . . . . . . . 1 . . . . . . . 1 . . . . . . Butcher 1 | . . . . . . . . . . . . 1 . . . . . . . . . . . . . . Guerrilla 1 | . . . . . . . . . . . . . . . . . . . . 1 . . . . . . Infiltrator 1 | . . . . . . . . . . . . . 1 . . . . . . . . . . . . . Knight 1 | . . . . . . . . . 1 . . . . . . . . . . . . . . . . . Best Kill Streak 18 | 2 5 11 4 4 12 5 4 1 14 1 5 5 6 6 4 1 2 4 6 8 5 6 . 3 2 18 Combat Bots Only 17 | . 5 5 3 3 12 2 4 1 14 1 5 4 6 5 4 1 2 4 6 4 5 3 . 3 2 17 Max Kills in Single Turn 7 | 1 2 3 2 1 2 2 2 1 4 1 2 3 4 1 2 1 1 1 3 3 1 2 . 1 1 7 Gunslinging . | . . . . . . . . . . . . . . . . . . . . . . . . . . . Exploded 7 | . 2 2 2 . 2 . . . 4 . . 3 4 . 2 . . . 3 2 . 1 . 1 . 7 Melee 1 | . . . . . . . . . . . . . . 1 . . . . . . . . . 1 . . Uniques/NPCs Destroyed 2 | . . . . . . . . . . . . . . . . . . . . . . . . . . 2 MAIN.C Shell (-1/Command) MAIN.C (-1/Command) Combat | -11 -10 -9 -9 -8 -8 -8 -8 -7 -7 -7 -7 -6 -6 -5 -5 -4 -4 -4 -4 -3 -3 -2 -2 -2 -1 -1 -------- Run | Yrd Mat Mat Min Mat Gar Mat Gar Fac Gar Fac Gar Fac Gar Fac Gar Fac Was Fac Gar Res Gar Res Tes Gar Acc Com Hostile Shots Fired 2148 | . 50 40 3 25 48 8 86 4 68 18 237 42 205 112 30 2 . 72 56 288 127 256 . 111 33 227 Missed 655 | . 12 12 2 6 15 2 22 . 21 9 69 16 78 23 10 2 . 21 14 100 32 78 . 31 13 67 Hits 1493 | . 38 28 1 19 33 6 64 4 47 9 168 26 127 89 20 . . 51 42 188 95 178 . 80 20 160 Melee 45 | . . . . . 9 . 5 . . . 9 . 13 1 . . . . . . 7 . . 1 . . Projectile 1448 | . 38 28 1 19 24 6 59 4 47 9 159 26 114 88 20 . . 51 42 188 88 178 . 79 20 160 AOE 14 | . . . . . . . 2 . . 1 10 . . . . . . . . . . . . . . 1 Critical Strikes 54 | . . . . 1 . . 2 . . . 3 . 2 4 . . . 5 5 14 4 4 . 3 . 7 Part Disruptions 5 | . . . . . . . 1 . . . . . . . . . . . . 1 . 1 . . 1 1 Damage Taken 21640 | . 429 411 10 329 514 78 838 45 481 153 1788 247 1357 1516 228 9 18 901 458 2904 1938 2695 . 1089 448 2756 Core 1324 | . 26 36 . 43 . 12 44 10 45 . 149 67 125 91 34 9 . 44 42 18 209 123 . 76 11 110 Absorbed by Shields 9020 | . . . . . 51 30 249 17 183 . 237 179 626 96 217 9 . 517 444 690 308 1440 . 1085 436 2206 Reduced by Siege Mode 369 | . . . . . . . . . . . . . 51 45 . . . 24 6 56 97 47 . 14 . 29 Redirected to Shielding 82 | . . . . . . . . . . . . . . . . . . . . . . . . . . 82 Ignored by Resistances 1088 | . . . . . . . . . . . . 38 147 . 21 . 8 . 46 357 . 431 . 40 . . Regen/Repaired (Parts) 3104 | . . . . . . . 263 . . . 39 103 33 584 122 . 277 130 779 . . 774 . . . . Core Remaining (%) 85 | 100 89 . 100 . . . 83 . . . 57 . 87 . 84 . . . 89 . 79 . . 83 . 91 Volleys Fired 1746 | 6 49 27 2 19 51 26 58 10 70 32 140 74 133 72 43 19 24 61 58 173 167 147 8 96 48 133 Largest 4 | 2 2 3 1 3 3 3 3 3 3 1 1 1 2 1 1 1 1 1 1 2 2 3 1 2 3 4 Hottest 298 | 40 66 99 30 204 204 204 211 155 120 40 51 51 102 68 68 68 68 68 68 113 148 233 110 175 226 298 Shots Fired 2412 | 12 96 78 2 57 115 62 128 20 114 34 138 75 161 72 43 19 24 61 59 175 171 220 9 159 67 241 Gun 288 | 12 54 . . . . . 7 6 . . . . . . . . . . . 21 60 18 1 15 . 94 Cannon 1626 | . 40 76 . 57 113 56 111 11 89 21 107 48 134 41 28 15 20 41 28 99 86 141 2 119 43 100 Launcher 48 | . 2 2 2 . 2 . 1 . 4 . . 4 3 . 1 . . . 4 15 . . . . . 8 Special 450 | . . . . . . 6 9 3 21 13 31 23 24 31 14 4 4 20 27 40 25 61 6 25 24 39 Kinetic 1223 | 12 94 76 . 45 10 11 5 7 74 21 107 48 134 41 28 15 20 41 28 75 5 85 . 49 32 160 Thermal 656 | . . . . 12 103 45 113 10 15 . . . . . . . . . . 10 141 74 3 85 11 34 Explosive 48 | . 2 2 2 . 2 . 1 . 4 . . 4 3 . 1 . . . 4 15 . . . . . 8 Electromagnetic 35 | . . . . . . . . . . . . . . . . . . . . 35 . . . . . . Robot Hit Streak 38 | 3 8 9 2 9 12 14 20 20 16 17 23 15 11 20 12 8 16 19 38 18 34 20 8 29 11 37 Robot Miss Streak 7 | 1 3 7 . 3 2 2 3 1 2 2 6 1 4 4 4 1 1 2 1 2 3 6 . 3 1 4 Penetration Max 2 | . . . . . . . . . . . 2 1 1 . . . . . . 1 . . . . . 1 Secondary Targets 3 | . 1 . . . . . . . . . . . . . . . . . . . . . . . . 2 Max Gunslinging Chain 1 | . 1 . . . . . . . . . . . . . . . . . . . . . . . . 1 Capacitor 140 | . . . . . . . . . . . . . . . . . . . . 41 99 . . . . . Shots Hit Robots 1572 | 8 57 31 1 31 43 36 68 16 58 23 79 54 105 52 22 9 22 42 39 128 124 161 6 117 52 188 Core Hits 701 | 3 34 19 3 22 26 13 33 7 31 6 28 24 49 15 7 1 4 8 27 51 51 48 . 34 7 150 Critical Kills 34 | . . . . . 1 . . . . . 11 9 11 . . . . . . . . 1 . . . 1 Critical Parts Destroyed 54 | . . . . . . . . . . . 18 13 21 . . . . . . . . . . 1 . 1 Critical Strikes 130 | . 1 1 . 1 1 1 . . 3 . 31 23 40 2 1 2 1 2 . 3 1 5 . 2 3 6 Burn 1 | . . . . . . . . . . . . . . . . . . . . . 1 . . . . . Meltdown 1 | . . . . . 1 . . . . . . . . . . . . . . . . . . . . . Destroy 92 | . . . . . . . . . . . 31 23 35 . . . . . . . . 1 . . . 2 Blast 33 | . 1 1 . 1 . 1 . . 3 . . . 3 2 1 2 1 2 . 3 . 4 . 1 3 4 Smash 1 | . . . . . . . . . . . . . . . . . . . . . . . . 1 . . Sever 2 | . . . . . . . . . . . . . 2 . . . . . . . . . . . . . Melee Attacks 25 | . . . . . . . . . . . . . 20 . . . . . . . . . . 4 . 1 Impact 4 | . . . . . . . . . . . . . . . . . . . . . . . . 4 . . Slashing 20 | . . . . . . . . . . . . . 20 . . . . . . . . . . . . . Piercing 1 | . . . . . . . . . . . . . . . . . . . . . . . . . . 1 Sneak Attacks 1 | . . . . . . . . . . . . . . . . . . . . . . . . . . 1 Combat Hostiles . | . . . . . . . . . . . . . . . . . . . . . . . . . . . Follow-up Attacks . | . . . . . . . . . . . . . . . . . . . . . . . . . . . Damage Inflicted 60720 | 91 1331 964 235 771 1202 824 1690 300 2547 356 924 1468 4158 2284 1020 517 1621 2043 2435 6437 4107 5975 . 5552 1790 10078 Guns 6216 | 91 490 . . . . . 25 69 . . . . . . . . . . . 514 1424 383 . 411 . 2809 Cannons 39196 | . 522 726 . 761 971 799 1537 231 1265 333 924 630 1725 2032 831 479 1621 2030 1243 4488 2683 4516 . 3787 1769 3293 Explosions 11312 | . 252 238 231 . 231 . 128 . 1282 . . 814 523 . 189 . . . 1192 1205 . 895 . 196 . 3936 Melee 2076 | . . . . . . . . . . . . . 1910 . . . . . . . . . . 162 . 4 Ramming 1920 | . 67 . 4 10 . 25 . . . 23 . 24 . 252 . 38 . 13 . 230 . 181 . 996 21 36 Kinetic 30538 | 91 1012 726 . 656 52 216 79 150 1181 333 924 630 1725 2032 831 479 1621 2030 1243 3534 . 2703 . 1777 1511 5002 Thermal 15464 | . . . . 105 919 583 1483 150 84 . . . . . . . . . . 439 4107 2738 . 2617 258 1981 Explosive 9693 | . 252 238 231 . 231 . 128 . 1282 . . 814 523 . 189 . . . 1192 1205 . 353 . . . 3055 Electromagnetic 1029 | . . . . . . . . . . . . . . . . . . . . 1029 . . . . . . Impact 162 | . . . . . . . . . . . . . . . . . . . . . . . . 162 . . Slashing 1910 | . . . . . . . . . . . . . 1910 . . . . . . . . . . . . . Piercing 4 | . . . . . . . . . . . . . . . . . . . . . . . . . . 4 Highest Corruption 64 | . . . . 2 2 . 2 2 23 23 25 1 64 3 3 . . 2 2 15 15 9 9 14 6 16 Average Corruption 11 | . . . . 1 2 . 1 2 9 23 24 1 37 2 3 . . 1 2 4 14 4 9 11 4 7 Corruption Purged . | . . . . . . . . . . . . . . . . . . . . . . . . . . . Corruption Blocked . | . . . . . . . . . . . . . . . . . . . . . . . . . . . Effects 597 | . . . . 7 16 . 3 2 43 55 78 2 102 12 2 . . . 18 24 62 21 8 63 14 65 Message Errors 149 | . . . . 1 5 . 1 1 13 19 16 1 24 4 2 . . . 5 7 10 5 4 13 6 12 Matter Fused 116 | . . . . 3 3 . . . 7 12 19 1 16 5 . . . . 2 6 12 4 . 13 1 12 Heat Flow Errors 62 | . . . . . 1 . . 1 5 5 7 . 8 . . . . . 1 4 9 3 1 7 1 9 Energy Discharges 69 | . . . . 2 2 . . . 5 8 8 . 12 . . . . . 4 2 6 . . 10 . 10 Parts Rejected 12 | . . . . . . . . . 1 2 . . 1 . . . . . . 3 2 . . 1 1 1 Parts Fused 4 | . . . . . . . . . 1 1 1 . . . . . . . . . 1 . . . . . Data Loss (minor) 77 | . . . . 1 4 . 2 . 6 5 11 . 11 3 . . . . 1 . 7 4 1 8 3 10 Data Loss (major) 34 | . . . . . . . . . 2 . 8 . 8 . . . . . 2 . 5 3 1 3 1 1 Misfires 21 | . . . . . . . . . 2 1 1 . 5 . . . . . 1 1 3 . 1 3 1 2 Alerts 16 | . . . . . 1 . . . . 1 2 . 3 . . . . . 2 . 2 1 . 2 . 2 Misdirections 10 | . . . . . . . . . . 1 1 . 5 . . . . . . . 2 . . . . 1 Weapon Failures 27 | . . . . . . . . . 1 . 4 . 9 . . . . . . 1 3 1 . 3 . 5 Overload Shots 1 | . . . . . . . . . 1 . . . . . . . . . . . . . . . . . Overflow Damage 2739 | . 9 . 8 . 13 6 28 . 76 10 . 126 85 471 116 76 . 145 155 415 108 385 . 254 117 136 Projectiles 1923 | . . . . . 13 6 9 . 35 10 . 2 37 413 116 76 . 145 117 331 108 244 . 62 117 82 Explosions 447 | . 9 . 8 . . . 19 . 41 . . 124 . . . . . . 38 64 . 97 . . . 47 Melee 369 | . . . . . . . . . . . . . 48 58 . . . . . 20 . 44 . 192 . 7 Knockbacks 138 | . 3 4 . 4 . . . . 3 . 13 8 24 9 6 1 . 5 5 15 . 16 . 5 2 15 Impact 8 | . . . . . . . . . . . . . . 2 . . . . . 2 . 1 . 2 . 1 Kinetic 120 | . 3 4 . 4 . . . . 3 . 9 7 22 7 5 1 . 5 5 12 . 14 . 3 2 14 Secondary 10 | . . . . . . . . . . . 4 1 2 . 1 . . . . 1 . 1 . . . . Self-Inflicted Damage 455 | . . 36 . . 66 . 57 . 46 . . 32 . . 5 . . . . 35 . 94 . 84 . . Shots 10 | . . 1 . . 2 . 1 . 1 . . 1 . . 1 . . . . 1 . 1 . 1 . . Rammed 115 | . 8 . . 1 . 2 . . . 3 . 2 . 9 . 2 . 1 . 11 . 10 . 63 1 2 Targets Rammed 124 | . 8 . 1 2 . 3 . . . 5 . 2 . 10 . 2 . 1 . 11 . 11 . 64 1 3 Kicked . | . . . . . . . . . . . . . . . . . . . . . . . . . . . Crushed 9 | . . . 1 1 . 1 . . . 2 . . . 1 . . . . . . . 1 . 1 . 1 Highest Temperature 498 | 6 111 357 . 240 276 168 420 225 156 174 248 . 266 . 1 . . 5 294 426 288 416 137 226 175 498 Average Temperature 99 | 6 32 158 . 68 88 59 130 129 75 70 92 . 96 . 1 . . 2 127 133 96 109 73 58 51 119 Received Heat Transfer 2042 | . 213 141 . 72 . 18 143 . 44 33 249 28 175 29 68 . . 50 258 226 94 89 . 88 20 4 Effects 7 | . . . . . . . 1 . . . . . . . . . . . . 1 . 1 . . . 4 Shutdowns 3 | . . . . . . . . . . . . . . . . . . . . . . 1 . . . 2 Energy Bleed 2 | . . . . . . . 1 . . . . . . . . . . . . 1 . . . . . . Interference 2 | . . . . . . . . . . . . . . . . . . . . . . . . . . 2 Siege Activations 23 | . . . . . . . . . . . . . 1 1 . . . 2 1 3 4 3 . 3 . 5 Total Turns 295 | . . . . . . . . . . . . . 29 31 . . . 44 5 26 38 32 . 30 . 60 Longest Duration 36 | . . . . . . . . . . . . . 29 31 . . . 36 5 16 17 15 . 12 . 17 Martial Activations . | . . . . . . . . . . . . . . . . . . . . . . . . . . . Shielding Activations . | . . . . . . . . . . . . . . . . . . . . . . . . . . . Robots Disrupted 2 | . . . . . . . . . . . . . . . . . . . . 1 . . . 1 . . Combat Hostiles 1 | . . . . . . . . . . . . . . . . . . . . 1 . . . . . . Robots Corrupted 7 | . . . . . . . . . . . . . . . . . . . . 4 . 1 . 2 . . Combat Hostiles 5 | . . . . . . . . . . . . . . . . . . . . 3 . . . 2 . . Parts Fried 17 | . . . . . . . . . . . . . . 2 . . . . . 6 . 4 . . . 5 Impact Corruptions 16 | . . . . . . . . . . . . . . 3 . . . . . 1 . 2 . 9 . 1 Robots Melted 2 | . . . . . 1 . . . . . . . . . . . . . . . 1 . . . . . Combat Hostiles 1 | . . . . . 1 . . . . . . . . . . . . . . . . . . . . . Parts Melted 24 | . . . . . 6 4 7 . . 1 . 1 . . . . . . . . 3 1 . . . 1 Heat Transferred 10118 | . . . . 185 1554 999 2492 298 111 . . . . . . . . . . . 1924 683 . 569 . 1303 Parts Sabotaged 2 | . . . . . . . . . . . . . . 2 . . . . . . . . . . . . Parts Stolen . | . . . . . . . . . . . . . . . . . . . . . . . . . . . Parts Stripped . | . . . . . . . . . . . . . . . . . . . . . . . . . . . Power Chain Reactions 7 | . . . . . . . . . . . . . . . . . . . . . . 2 . 2 . 3 Alert | -11 -10 -9 -9 -8 -8 -8 -8 -7 -7 -7 -7 -6 -6 -5 -5 -4 -4 -4 -4 -3 -3 -2 -2 -2 -1 -1 ------- Run | Yrd Mat Mat Min Mat Gar Mat Gar Fac Gar Fac Gar Fac Gar Fac Gar Fac Was Fac Gar Res Gar Res Tes Gar Acc Com Maximum Alert Level 5 | . 1 1 . 1 4 3 3 2 3 1 2 2 4 3 3 2 . 1 3 3 4 3 1 3 3 5 Low Security (%) 34 | 100 64 21 100 89 3 22 18 65 15 98 36 63 7 36 . . 100 81 21 . . 18 18 3 11 85 Level 1 19 | . 35 78 . 10 5 33 19 9 25 1 40 35 1 34 12 . . 18 13 1 . 54 81 26 7 1 Level 2 23 | . . . . . 40 36 38 25 18 . 22 1 21 . 44 100 . . 25 91 16 14 . 50 75 1 Level 3 16 | . . . . . 32 7 22 . 39 . . . 32 28 42 . . . 40 7 55 13 . 19 6 . Level 4 5 | . . . . . 18 . . . . . . . 38 . . . . . . . 27 . . . . 4 Level 5 . | . . . . . . . . . . . . . . . . . . . . . . . . . . 6 High Security . | . . . . . . . . . . . . . . . . . . . . . . . . . . . Max Security . | . . . . . . . . . . . . . . . . . . . . . . . . . . . Peak Influence 1585 | 10 267 272 131 265 1294 757 844 443 797 207 658 418 1585 831 995 546 182 277 1006 742 1266 792 340 812 711 404 Initial 831 | . . 102 81 29 156 630 . 443 57 207 . 345 146 831 233 522 182 . 102 565 535 708 339 126 427 389 Average 422 | 1 133 210 88 73 788 406 483 202 507 42 303 131 935 368 688 493 83 89 566 545 930 388 287 538 528 64 Influence Increases 20415 | 10 684 322 85 649 1148 473 854 104 930 143 818 795 1579 490 802 248 4 672 924 1166 985 1665 90 1182 911 2682 Destroy 0b10 Robot/C 8600 | . 380 180 60 260 500 240 480 40 520 40 360 340 660 260 240 80 . 220 340 600 340 520 . 420 460 1060 Destroy 0b10 Robot/NC 550 | 10 40 30 5 25 . 30 10 10 . 30 5 20 30 35 . 10 . 25 . 50 30 60 . 5 25 65 Destroy Leader 1202 | . 90 54 10 94 20 84 30 20 30 22 20 80 20 50 40 12 . 50 20 74 30 102 . 30 70 150 Allied During Kill 2972 | . . . . 32 6 86 1 . 32 10 104 99 146 68 261 102 . 122 81 159 87 195 . 129 296 956 Trap Triggered on 0b10 50 | . . . . . . . . . . . . 50 . . . . . . . . . . . . . . Successful Hack 437 | . 12 11 . 4 7 15 . 34 12 22 14 35 21 47 14 12 . 51 12 12 14 64 12 12 . . Select Force Hacks 30 | . 30 . . . . . . . . . . . . . . . . . . . . . . . . . Disable Machine 795 | . 15 15 . . . 15 . . 75 . 15 150 45 . 45 . . 120 15 30 60 45 30 60 . 60 Anti-Garrison Action 3000 | . . . . . 500 . 250 . 200 . 250 . 500 . 150 . . . 350 . 300 150 . 350 . . Destroy Structure 1904 | . 15 32 10 8 100 3 83 . 61 4 50 21 112 30 52 32 4 84 91 226 94 237 48 131 30 346 Partial Spotted 30 | . . . . . . . . . . 15 . . . . . . . . . 15 . . . . . . Lose Combat Pursuer 285 | . . . . 30 15 . . . . . . . 45 . . . . . 15 . 30 30 . 45 30 45 Miscellaneous 560 | . 102 . . 196 . . . . . . . . . . . . . . . . . 262 . . . . Influence Decreases 18700 | 10 442 354 219 484 95 1767 10 866 615 540 160 1244 203 1742 140 723 524 526 64 1458 439 2322 524 638 1015 1576 Entered New Map 5751 | . . 140 129 47 85 664 . 401 25 190 . 313 63 754 100 473 338 . 44 441 179 552 264 43 286 220 Time Decay 5617 | 10 442 214 90 397 . 223 . 190 . 350 . 389 . 518 . 230 186 264 . 577 . 630 130 . 294 483 Lost Part 318 | . . . . . 10 . 10 . 20 . 40 . 20 . . . . . . 90 40 20 . 20 . 48 Lost Ally 2777 | . . . . 40 . 80 . . 70 . 120 105 120 20 40 20 . 112 20 350 220 520 130 200 160 450 Purge Threat 4237 | . . . . . . 800 . 275 500 . . 437 . 450 . . . 150 . . . 600 . 375 275 375 Squads Dispatched 96 | . 4 1 . 1 . 6 . 2 . 8 . 8 . 4 . 4 . 7 . 13 . 22 1 . 7 8 Investigation 25 | . 3 . . 1 . 4 . 2 . 4 . 1 . 2 . 1 . 3 . 2 . 2 . . . . Extermination 21 | . . . . . . . . . . 2 . 2 . 2 . 1 . 1 . 3 . 5 . . 1 4 Reinforcement 35 | . 1 1 . . . 1 . . . 2 . 2 . . . 2 . 3 . 5 . 9 . . 5 4 Assault 6 | . . . . . . . . . . . . . . . . . . . . 2 . 4 . . . . Garrison 9 | . . . . . . 1 . . . . . 3 . . . . . . . 1 . 2 1 . 1 . Intercept . | . . . . . . . . . . . . . . . . . . . . . . . . . . . Searches Triggered . | . . . . . . . . . . . . . . . . . . . . . . . . . . . Construction Impeded 7 | . . 1 . . . . . . . 1 . . . . . 1 . 1 . 1 . 2 . . . . Haulers Reinforced 6 | . . . . . . . . . . . . . . . . 1 . . . 2 . 2 . . 1 . Active Scanning Responses . | . . . . . . . . . . . . . . . . . . . . . . . . . . . Cargo Convoy Interrupts 2 | . . . . . . . . . . . . . . 1 . . . . . 1 . . . . . . Alert ID Control Effect 225 | . . . . . . . . . . 8 7 7 12 5 10 6 . 13 10 19 19 55 4 31 4 15 Stealth | -11 -10 -9 -9 -8 -8 -8 -8 -7 -7 -7 -7 -6 -6 -5 -5 -4 -4 -4 -4 -3 -3 -2 -2 -2 -1 -1 --------- Run | Yrd Mat Mat Min Mat Gar Mat Gar Fac Gar Fac Gar Fac Gar Fac Gar Fac Was Fac Gar Res Gar Res Tes Gar Acc Com Distress Signals 54 | . 1 1 . 2 . 1 1 . . 1 . 1 . 2 1 . . . . 5 . 9 1 . . 28 Communications Jammed . | . . . . . . . . . . . . . . . . . . . . . . . . . . . Distress Signals . | . . . . . . . . . . . . . . . . . . . . . . . . . . . Times Spotted 896 | . 26 12 3 19 27 14 25 3 35 15 30 34 67 34 28 9 6 32 50 80 53 119 7 43 39 86 Peak Tracking Total 15 | . 4 7 3 3 4 3 4 1 11 3 6 5 8 7 5 3 2 4 8 11 8 9 3 7 5 15 Tactical Retreats 16 | . . . . 1 1 . . . . . . . 3 . . . . . 1 . 1 2 . 3 1 3 Traps | -11 -10 -9 -9 -8 -8 -8 -8 -7 -7 -7 -7 -6 -6 -5 -5 -4 -4 -4 -4 -3 -3 -2 -2 -2 -1 -1 ------- Run | Yrd Mat Mat Min Mat Gar Mat Gar Fac Gar Fac Gar Fac Gar Fac Gar Fac Was Fac Gar Res Gar Res Tes Gar Acc Com Traps Triggered 28 | . 2 . . 2 2 . . . 2 . 1 . 1 . 1 2 . 1 1 . 2 2 . 2 . 7 Indirectly . | . . . . . . . . . . . . . . . . . . . . . . . . . . . Trap Hack Attempts . | . . . . . . . . . . . . . . . . . . . . . . . . . . . Triggered . | . . . . . . . . . . . . . . . . . . . . . . . . . . . Disarmed . | . . . . . . . . . . . . . . . . . . . . . . . . . . . Reprogrammed . | . . . . . . . . . . . . . . . . . . . . . . . . . . . Reused . | . . . . . . . . . . . . . . . . . . . . . . . . . . . Traps Extracted . | . . . . . . . . . . . . . . . . . . . . . . . . . . . Installed . | . . . . . . . . . . . . . . . . . . . . . . . . . . . Triggered 5 | . . . . . . . . . . . . 5 . . . . . . . . . . . . . . Machines | -11 -10 -9 -9 -8 -8 -8 -8 -7 -7 -7 -7 -6 -6 -5 -5 -4 -4 -4 -4 -3 -3 -2 -2 -2 -1 -1 ---------- Run | Yrd Mat Mat Min Mat Gar Mat Gar Fac Gar Fac Gar Fac Gar Fac Gar Fac Was Fac Gar Res Gar Res Tes Gar Acc Com Machines Disabled 94 | . 1 1 . . 3 1 6 . 7 . 4 10 9 . 9 . . 8 5 2 8 4 2 10 . 4 Max in Single Turn 3 | . 1 1 . . 2 1 2 . 1 . 1 3 1 . 1 . . 1 1 1 1 1 1 1 . 1 Garrison Access 8 | . . . . . . . . . . . . . . 1 . . . . . 1 . 3 . . 3 . Garrison Relay 32 | . . . . . 1 . 4 . 2 . 4 . 5 . 3 . . . 4 . 4 . . 5 . . Phase Generator 6 | . . . . . 1 . 1 . 1 . . . 1 . . . . . . . 1 . . 1 . . Energy Cycler 1 | . . . . . . . . . . . . . . . . . . . . . . . . . 1 . Machines Repaired . | . . . . . . . . . . . . . . . . . . . . . . . . . . . Machines Dismantled . | . . . . . . . . . . . . . . . . . . . . . . . . . . . Machines Sabotaged . | . . . . . . . . . . . . . . . . . . . . . . . . . . . Overloaded Fab Kills . | . . . . . . . . . . . . . . . . . . . . . . . . . . . Hacking | -11 -10 -9 -9 -8 -8 -8 -8 -7 -7 -7 -7 -6 -6 -5 -5 -4 -4 -4 -4 -3 -3 -2 -2 -2 -1 -1 --------- Run | Yrd Mat Mat Min Mat Gar Mat Gar Fac Gar Fac Gar Fac Gar Fac Gar Fac Was Fac Gar Res Gar Res Tes Gar Acc Com Machines Accessed 97 | . 4 1 . 7 3 6 1 7 1 7 4 7 2 7 2 2 . 7 3 4 1 11 2 2 6 . Terminals 57 | . 3 1 . 6 3 4 1 5 1 3 4 2 2 2 2 . . 4 3 . 1 5 1 2 2 . Fabricators 9 | . . . . . . . . . . 1 . 2 . 1 . 1 . 1 . . . 3 . . . . Repair Stations 7 | . . . . . . . . 1 . 1 . 1 . 1 . 1 . 1 . . . 1 . . . . Recycling Units 2 | . 1 . . . . . . . . . . 1 . . . . . . . . . . . . . . Scanalyzers 7 | . . . . . . 1 . . . 1 . . . 1 . . . . . 2 . 1 . . 1 . Garrison Access 15 | . . . . 1 . 1 . 1 . 1 . 1 . 2 . . . 1 . 2 . 1 1 . 3 . Total Hacks 212 | . 11 3 . 15 4 17 2 13 3 17 6 13 3 19 3 6 . 16 6 8 2 29 5 4 7 . Successful 99 | . 4 2 . 7 3 9 . 6 1 12 1 5 2 9 1 2 . 7 2 3 1 14 2 2 4 . Failed 112 | . 7 1 . 8 1 8 2 7 2 5 5 8 1 10 2 4 . 9 4 5 1 15 3 2 2 . Catastrophic 23 | . 1 . . 2 1 2 . 3 1 . 2 1 1 1 1 . . 3 1 1 . 1 . . 1 . Database Lockouts 1 | . . . . . . . . . . . . . . . . . . . . . . . . . 1 . Manual 78 | . 12 3 . 8 1 9 . 7 1 4 . 2 . 6 . 3 . 7 . . . 10 4 . 1 . Terminals 129 | . 10 3 . 14 4 13 2 7 3 7 6 5 3 6 3 . . 13 6 . 2 14 2 4 2 . Fabricators 25 | . . . . . . . . . . 2 . 4 . 4 . 4 . 1 . . . 10 . . . . Repair Stations 14 | . . . . . . . . 4 . 2 . 2 . 2 . 2 . 1 . . . 1 . . . . Recycling Units 2 | . 1 . . . . . . . . . . 1 . . . . . . . . . . . . . . Scanalyzers 23 | . . . . . . 2 . . . 5 . . . 5 . . . . . 6 . 3 . . 2 . Garrison Access 19 | . . . . 1 . 2 . 2 . 1 . 1 . 2 . . . 1 . 2 . 1 3 . 3 . Terminal Hacks 36 | . 3 1 . 5 3 3 . 1 1 2 1 1 2 . 1 . . 4 2 . 1 3 . 2 . . Part Schematic 2 | . 1 . . . . . . . . 1 . . . . . . . . . . . . . . . . Robot Schematic 2 | . . . . 1 . . . . . . . . . . . . . 1 . . . . . . . . Robot Analysis 4 | . 2 1 . 1 . . . . . . . . . . . . . . . . . . . . . . Prototype ID Bank 1 | . . . . . . . . . . . . . . . . . . . . . . 1 . . . . Open Door 4 | . . . . . 1 . . . . . . . 1 . . . . . 1 . . . . 1 . . Branch Access Points 1 | . . . . . . . . . . . . . . . . . . . . . . 1 . . . . Emergency Access Points 5 | . . . . . 1 . . . . . . . 1 . . . . . 1 . 1 . . 1 . . Fabricator Index 1 | . . . . . . . . . . . . 1 . . . . . . . . . . . . . . Alert Level 1 | . . . . 1 . . . . . . . . . . . . . . . . . . . . . . Unreport Threat 4 | . . . . . . 3 . . . . . . . . . . . . . . . 1 . . . . Transport Status 1 | . . . . . . . . . . . . . . . . . . 1 . . . . . . . . Hauler Manifests 1 | . . . . . . . . 1 . . . . . . . . . . . . . . . . . . Registered Components 2 | . . . . . . . . . . 1 . . . . . . . 1 . . . . . . . . Registered Prototypes 1 | . . . . . . . . . . . . . . . . . . 1 . . . . . . . . Zone Layout 2 | . . . . 2 . . . . . . . . . . . . . . . . . . . . . . Garrison Registry 2 | . . . . . . . . . 1 . . . . . 1 . . . . . . . . . . . Patrol Navigation 2 | . . . . . 1 . . . . . 1 . . . . . . . . . . . . . . . Fabricator Hacks 11 | . . . . . . . . . . 2 . 1 . 2 . 1 . . . . . 5 . . . . Network Status 2 | . . . . . . . . . . . . . . . . 1 . . . . . 1 . . . . Load Schematic 5 | . . . . . . . . . . 1 . 1 . 1 . . . . . . . 2 . . . . Build 4 | . . . . . . . . . . 1 . . . 1 . . . . . . . 2 . . . . Repair Station Hacks 1 | . . . . . . . . 1 . . . . . . . . . . . . . . . . . . Scan Component 1 | . . . . . . . . 1 . . . . . . . . . . . . . . . . . . Recycling Unit Hacks 1 | . . . . . . . . . . . . 1 . . . . . . . . . . . . . . Retrieve Matter 1 | . . . . . . . . . . . . 1 . . . . . . . . . . . . . . Scanalyzer 12 | . . . . . . 2 . . . 5 . . . 2 . . . . . 1 . 1 . . 1 . Insert Component 2 | . . . . . . . . . . 1 . . . 1 . . . . . . . . . . . . Analyze 2 | . . . . . . . . . . 1 . . . 1 . . . . . . . . . . . . Retrieve Study 8 | . . . . . . 2 . . . 3 . . . . . . . . . 1 . 1 . . 1 . Garrison Access Hacks 15 | . . . . 1 . 1 . 1 . 1 . 1 . 2 . . . 1 . 2 . 1 1 . 3 . Unlock Access 9 | . . . . 1 . 1 . 1 . 1 . 1 . 1 . . . 1 . 1 . . 1 . . . Seal Access 6 | . . . . . . . . . . . . . . 1 . . . . . 1 . 1 . . 3 . Unauthorized Hacks 23 | . 1 1 . 1 . 3 . 3 . 2 . 1 . 3 . 1 . 2 . . . 4 1 . . . Terminals 14 | . . 1 . 1 . 2 . 2 . 1 . . . 2 . . . 2 . . . 3 . . . . Assimilate 1 | . . . . . . . . . . . . . . . . . . 1 . . . . . . . . Botnet 8 | . . 1 . 1 . 1 . 1 . 1 . . . 1 . . . 1 . . . 1 . . . . Operators 5 | . . . . . . 1 . 1 . . . . . 1 . . . . . . . 2 . . . . Fabricators 1 | . . . . . . . . . . . . . . . . 1 . . . . . . . . . . Liberate 1 | . . . . . . . . . . . . . . . . 1 . . . . . . . . . . Repair Stations 4 | . . . . . . . . . . 1 . 1 . 1 . . . . . . . 1 . . . . Mechanics 4 | . . . . . . . . . . 1 . 1 . 1 . . . . . . . 1 . . . . Recycling Units 1 | . 1 . . . . . . . . . . . . . . . . . . . . . . . . . Tunnel 1 | . 1 . . . . . . . . . . . . . . . . . . . . . . . . . Scanalyzers . | . . . . . . . . . . . . . . . . . . . . . . . . . . . Garrison Access 3 | . . . . . . 1 . 1 . . . . . . . . . . . . . . 1 . . . Broadcast 1 | . . . . . . . . . . . . . . . . . . . . . . . 1 . . . Reprogram 2 | . . . . . . 1 . 1 . . . . . . . . . . . . . . . . . . Data Cores Recovered 6 | . . . . . . . . 1 . . . 1 . . . . . 1 . . . 1 . . 2 . Used 3 | . . . . . . . . . . . . . . . . . . 1 . . . 1 . . 1 . Hacking Detections 75 | . 3 1 . 6 1 6 1 4 1 5 2 7 2 6 2 2 . 6 2 2 1 9 2 1 3 . Full Trace Events 19 | . . . . 1 . 1 . 1 . 3 . 1 1 2 . 1 . 3 1 2 . 2 . . . . Feedback Events . | . . . . . . . . . . . . . . . . . . . . . . . . . . . Feedback Blocked . | . . . . . . . . . . . . . . . . . . . . . . . . . . . Robot Schematics Acquired 2 | . . . . 1 . . . . . . . . . . . . . 1 . . . . . . . . Robots Built 4 | . . . . . . . . . . . . . . 1 . . . . . . . 3 . . . . Authchips . | . . . . . . . . . . . . . . . . . . . . . . . . . . . Time 248 | . . . . . . . . . . . . . . 58 . . . . . . . 190 . . . . Total Robot Build Rating 24 | . . . . . . . . . . . . . . 3 . . . . . . . 21 . . . . Part Schematics Acquired 6 | . 1 . . . . . . . . 2 . . . 1 . . . . . . . . . 2 . . Parts Built 2 | . . . . . . . . . . 2 . . . . . . . . . . . . . . . . Authchips . | . . . . . . . . . . . . . . . . . . . . . . . . . . . Time 106 | . . . . . . . . . . 106 . . . . . . . . . . . . . . . . Total Part Build Rating 12 | . . . . . . . . . . 12 . . . . . . . . . . . . . . . . Part Studies Acquired 8 | . . . . . . 2 . . . 3 . . . . . . . . . 1 . 1 . . 1 . Parts Repaired . | . . . . . . . . . . . . . . . . . . . . . . . . . . . Time . | . . . . . . . . . . . . . . . . . . . . . . . . . . . Parts Recycled . | . . . . . . . . . . . . . . . . . . . . . . . . . . . Recycled Matter . | . . . . . . . . . . . . . . . . . . . . . . . . . . . Retrieved Matter 414 | . . . . . . . . . . . . 414 . . . . . . . . . . . . . . Retrieved Components . | . . . . . . . . . . . . . . . . . . . . . . . . . . . Parts Scanalyzed 2 | . . . . . . . . . . 1 . . . 1 . . . . . . . . . . . . Part Schematics Acquired 2 | . . . . . . . . . . 1 . . . 1 . . . . . . . . . . . . Parts Damaged . | . . . . . . . . . . . . . . . . . . . . . . . . . . . Bothacking | -11 -10 -9 -9 -8 -8 -8 -8 -7 -7 -7 -7 -6 -6 -5 -5 -4 -4 -4 -4 -3 -3 -2 -2 -2 -1 -1 ------------ Run | Yrd Mat Mat Min Mat Gar Mat Gar Fac Gar Fac Gar Fac Gar Fac Gar Fac Was Fac Gar Res Gar Res Tes Gar Acc Com Used RIF Installer 12 | . . . . . 1 . 2 . 2 . 1 . 1 . 1 . . . 2 . 1 . . 1 . . Coupler Efficiency 1 | . . . . . . . 1 . . . . . . . . . . . . . . . . . . . Code Merge 1 | . . . . . . . . . . . . . . . . . . . 1 . . . . . . . Command Fork 1 | . . . . . . . . . . . . . . . . . . . . . . . . 1 . . Zone Cloak 2 | . . . . . . . 1 . . . 1 . . . . . . . . . . . . . . . Watcher Feeds 1 | . . . . . . . . . 1 . . . . . . . . . . . . . . . . . Patrol Navigation 1 | . . . . . . . . . . . . . . . . . . . . . 1 . . . . . Alert ID Control 1 | . . . . . . . . . 1 . . . . . . . . . . . . . . . . . Structural Interface 1 | . . . . . . . . . . . . . 1 . . . . . . . . . . . . . Program Shield 1 | . . . . . . . . . . . . 1 . . . . . . . . . . . . . . Autooverride 1 | . . . . . . . . . . . . . . . . . . . 1 . . . . . . . Crosswire 1 | . . . . . . . . . . . . . . . 1 . . . . . . . . . . . Robots Hacked 317 | . . . . . . 1 2 1 9 8 5 11 15 19 10 2 4 13 19 38 24 62 4 16 21 33 Non-combat 58 | . . . . . . 1 1 1 1 1 2 7 1 7 . 1 . 7 . 9 . 12 1 1 3 2 Combat 259 | . . . . . . . 1 . 8 7 3 4 14 12 10 1 4 6 19 29 24 50 3 15 18 31 Autooverrided 65 | . . . . . . . . . . . . . . . . . . . 2 12 10 20 . 6 5 10 Robot Hacks Applied 322 | . . . . . . 4 3 3 16 10 6 19 16 27 11 3 4 15 17 31 16 54 4 14 20 29 parse_system 15 | . . . . . . . . . 2 . . 1 . . . 1 . . . 3 1 1 . 2 . 4 ignore_repairs 1 | . . . . . . . . . . . . . . . . . . . . . . 1 . . . . map_walls 3 | . . . . . . . . . . . . . . . . . . . . . . 2 . . 1 . find_fabricator 3 | . . . . . . . . . . 1 . . . 1 . . . . . . . 1 . . . . drop_inventory 17 | . . . . . . . . . . 1 . 3 . 3 . . . 2 . 2 . 5 1 . . . locate_stockpiles 1 | . . . . . . . . . . . . . . 1 . . . . . . . . . . . . ignore_parts 1 | . . . . . . . . . . . . . . . . . . . . . . . . . . 1 purge_threat 31 | . . . . . . 3 . 2 5 . . 4 . 4 . . . 1 . . . 4 . 3 2 3 reprogram_traps 1 | . . . . . . . . . . . . 1 . . . . . . . . . . . . . . block_reporting 5 | . . . . . . . . 1 . . . . . 1 . . . 1 . . . 1 . . 1 . map_route 1 | . . . . . . . . . . . . . . . . . . . . 1 . . . . . . redirect_shields 1 | . . . . . . . . . . . 1 . . . . . . . . . . . . . . . ignore_targets 4 | . . . . . . . . . . . . . . . . . 4 . . . . . . . . . find_garrison 9 | . . . . . . . . . . 1 . 1 . 2 . . . 1 . 1 . 2 . . 1 . spike_heat 1 | . . . . . . . . . . . . . . . . . . . 1 . . . . . . . overload_power 4 | . . . . . . . . . . . . . . . . . . . . 2 1 1 . . . . amplify_resonance 83 | . . . . . . . 1 . 4 1 3 1 11 5 5 1 . 4 9 6 7 9 . 5 6 5 wipe_record 1 | . . . . . . . . . . . . . . . . . . . . . . 1 . . . . reboot_system 8 | . . . . . . . . . . . . . 1 . . . . . . 3 . 3 . . 1 . overwrite_iff 21 | . . . . . . . 1 . 1 1 . 1 1 1 1 . . . 1 4 2 2 . 1 3 1 formatsys_low 20 | . . . . . . 1 1 . 1 1 1 5 . 2 . . . 4 . . . 1 1 1 . 1 formatsys_high 91 | . . . . . . . . . 3 4 1 2 3 7 5 1 . 2 6 9 5 20 2 2 5 14 Relay Couplers Released 154 | . . . . . 9 . 16 . 12 . 16 4 21 1 14 . . . 13 4 19 1 . 21 3 . Machine Destruction 140 | . . . . . 5 . 16 . 9 . 16 . 21 1 14 . . . 13 1 19 1 . 21 3 . Programmers 14 | . . . . . 4 . . . 3 . . 4 . . . . . . . 3 . . . . . . Attached 85 | . . . . . . 1 2 1 5 3 1 4 6 6 3 1 . 3 4 8 8 9 1 9 2 8 Crosswired 32 | . . . . . . . . . . . . . . . 2 . . . 6 1 11 1 . 9 2 . Merged Code Value 147 | . . . . . . . . . . . . . . . . . . . 9 . 64 . . 62 12 . Fabnet Peak Effective % . | . . . . . . . . . . . . . . . . . . . . . . . . . . . Robots Rewired 18 | . . . . . . . . . . . 8 . . . . . . . 1 1 4 . 1 3 . . Allies Hacked 9 | . . . . . . . . . . 2 . . 2 1 1 . . . . . . . . 1 . 2 Hacks Repelled . | . . . . . . . . . . . . . . . . . . . . . . . . . . . Allies | -11 -10 -9 -9 -8 -8 -8 -8 -7 -7 -7 -7 -6 -6 -5 -5 -4 -4 -4 -4 -3 -3 -2 -2 -2 -1 -1 -------- Run | Yrd Mat Mat Min Mat Gar Mat Gar Fac Gar Fac Gar Fac Gar Fac Gar Fac Was Fac Gar Res Gar Res Tes Gar Acc Com Total Allies 247 | . . . 3 . 2 4 2 2 6 5 12 8 9 11 8 3 . 6 10 25 20 42 9 14 15 31 Largest Group 16 | . . . 3 3 2 5 2 3 3 6 10 8 6 8 15 16 15 16 8 8 7 8 12 8 7 10 Highest-Rated Group 1071 | . . . 40 40 51 99 49 58 115 154 270 217 279 364 892 949 899 948 316 398 622 674 755 589 479 1071 Highest-Rated Ally 213 | . . . 16 16 31 31 26 26 57 32 43 43 95 64 142 142 142 142 51 142 148 148 157 157 89 213 Total Orders 108 | . . . . . . . 16 2 6 . 7 8 5 5 8 . 1 4 17 1 7 7 . 6 . 8 STAY 51 | . . . . . . . 7 1 3 . 3 3 3 1 4 . . . 8 1 4 3 . 4 . 6 FOLLOW 37 | . . . . . . . 7 1 3 . 3 4 1 2 3 . . . 4 . 3 2 . 2 . 2 AID 20 | . . . . . . . 2 . . . 1 1 1 2 1 . 1 4 5 . . 2 . . . . Ally Attacks 1671 | . . . . 24 . 30 5 . 20 27 39 64 68 35 48 53 28 91 39 162 71 265 28 154 120 300 Total Damage 57362 | . . . . 244 . 452 77 . 473 669 1246 1349 1569 1255 1629 1554 1304 4160 1240 5783 2269 8452 1083 4783 3490 14281 Kills 337 | . . . . 4 . 5 1 . 2 8 12 13 16 5 14 9 2 28 10 23 18 56 4 37 28 42 Allies Corrupted 25 | . . . . 1 . . . . . . . 2 . . . . . 1 . 3 . 1 4 2 2 9 Allies Melted 2 | . . . . . . . . . . . . 1 . . . . . . . . 1 . . . . . X0-1V1 Amusement Gains 205 | . 10 5 . 5 60 . 30 . 1 . . . . 5 . . . . . . 3 1 . 55 . 30 Good Acts 148 | . . 2 2 4 5 4 7 1 4 3 1 8 10 2 9 1 6 3 10 15 13 8 1 9 5 15 Bad Acts 88 | . 1 1 . 2 3 . 7 1 6 3 6 3 10 . . . . 2 5 5 6 16 . 7 1 3 Intel | -11 -10 -9 -9 -8 -8 -8 -8 -7 -7 -7 -7 -6 -6 -5 -5 -4 -4 -4 -4 -3 -3 -2 -2 -2 -1 -1 ------- Run | Yrd Mat Mat Min Mat Gar Mat Gar Fac Gar Fac Gar Fac Gar Fac Gar Fac Was Fac Gar Res Gar Res Tes Gar Acc Com Active Infowar (turns) 4595 | 20 519 . . . . . . 335 376 . . . . . 1 . . . . 42 . 2 . 467 645 2188 Optics 4049 | . . . . . . . . 335 376 . . . . . 1 . . . . 39 . . . 465 645 2188 A.S.S. 2 | . . . . . . . . . . . . . . . . . . . . . . 2 . . . . IFF 2 | . . . . . . . . . . . . . . . . . . . . . . . . 2 . . Seismic 539 | 20 519 . . . . . . . . . . . . . . . . . . . . . . . . . Cloaking 2 | . . . . . . . . . . . . . . . . . . . . 2 . . . . . . ECM 3 | . . . . . . . . . . . . . . . . . . . . 1 . . . . . 2 Robot Analysis Total 4 | . 2 1 . 1 . . . . . . . . . . . . . . . . . . . . . . Derelict Logs Recovered . | . . . . . . . . . . . . . . . . . . . . . . . . . . . Drone Launches . | . . . . . . . . . . . . . . . . . . . . . . . . . . . Drone Recoveries . | . . . . . . . . . . . . . . . . . . . . . . . . . . . Exploration | -11 -10 -9 -9 -8 -8 -8 -8 -7 -7 -7 -7 -6 -6 -5 -5 -4 -4 -4 -4 -3 -3 -2 -2 -2 -1 -1 ------------- Run | Yrd Mat Mat Min Mat Gar Mat Gar Fac Gar Fac Gar Fac Gar Fac Gar Fac Was Fac Gar Res Gar Res Tes Gar Acc Com Turns Passed 29877 | 41 1697 453 181 1094 1142 592 1165 399 1359 1227 1551 1257 1835 1429 1060 489 431 801 1242 1765 1774 2195 270 1595 645 2188 Spaces Moved 14336 | 12 717 220 108 559 638 328 581 226 630 636 693 630 806 713 496 261 117 410 657 863 849 1008 162 727 343 946 Core . | . . . . . . . . . . . . . . . . . . . . . . . . . . . Treads 14087 | 10 704 220 108 559 638 328 581 226 630 636 693 630 806 713 496 261 117 410 657 801 741 944 162 727 343 946 Legs 2 | 2 . . . . . . . . . . . . . . . . . . . . . . . . . . Wheels 247 | . 13 . . . . . . . . . . . . . . . . . . 62 108 64 . . . . Hover . | . . . . . . . . . . . . . . . . . . . . . . . . . . . Flight . | . . . . . . . . . . . . . . . . . . . . . . . . . . . Fastest Speed 120 | 120 130 160 160 158 152 152 152 152 152 166 166 167 160 160 160 155 150 150 150 130 130 143 150 141 150 150 Average Speed 159 | 153 159 160 160 160 152 152 152 152 157 167 168 167 162 160 160 159 162 150 152 149 158 160 150 152 150 177 Slowest Speed 250 | 160 160 160 160 165 158 152 212 152 216 232 250 170 167 160 160 160 232 150 155 237 240 240 235 225 150 185 Overloaded Moves . | . . . . . . . . . . . . . . . . . . . . . . . . . . . Propulsion Burnouts . | . . . . . . . . . . . . . . . . . . . . . . . . . . . Robots Hopped . | . . . . . . . . . . . . . . . . . . . . . . . . . . . Potential Cave-ins . | . . . . . . . . . . . . . . . . . . . . . . . . . . . Cave-ins Triggered . | . . . . . . . . . . . . . . . . . . . . . . . . . . . Exploration Rate (%) 53 | 2 96 29 38 65 91 34 85 9 87 18 96 33 94 30 67 13 80 19 94 29 98 57 34 95 16 48 Regions Visited 26 Branch Regions 3 Pre-discovered Areas 1 | . 1 . . . . . . . . . . . . . . . . . . . . . . . . . Known Exits Taken 10 | . . . . 1 . 1 . 1 . 1 . 1 . 1 . . . 1 . 1 . 1 1 . . . Unknown Exits Taken 5 | 1 1 1 1 . . . . . . . . . . . . . . . . . . . . . 1 . Scrap Searched 2 | . . . 2 . . . . . . . . . . . . . . . . . . . . . . . Spaces Dug 18 | . . 1 . . . 2 . . 1 . . 1 . 1 . 2 . 1 . 4 . 1 . . 1 3 Terrain Destroyed 802 | . 12 26 11 7 80 3 91 . 11 4 1 19 29 10 26 9 1 8 41 156 16 44 . 46 6 145 Melee . | . . . . . . . . . . . . . . . . . . . . . . . . . . . Projectile 179 | . 1 10 . 7 2 3 . . 1 4 1 . 12 10 2 9 1 8 3 18 16 28 . 19 6 18 AOE 622 | . 11 16 11 . 78 . 91 . 10 . . 18 17 . 24 . . . 38 138 . 16 . 27 . 127 Terrain Rammed . | . . . . . . . . . . . . . . . . . . . . . . . . . . . Walls Destroyed . | . . . . . . . . . . . . . . . . . . . . . . . . . . . Machines Disabled . | . . . . . . . . . . . . . . . . . . . . . . . . . . . Actions | -11 -10 -9 -9 -8 -8 -8 -8 -7 -7 -7 -7 -6 -6 -5 -5 -4 -4 -4 -4 -3 -3 -2 -2 -2 -1 -1 --------- Run | Yrd Mat Mat Min Mat Gar Mat Gar Fac Gar Fac Gar Fac Gar Fac Gar Fac Was Fac Gar Res Gar Res Tes Gar Acc Com Total 19445 | 23 1173 259 114 712 716 373 762 260 900 774 949 764 1139 926 731 314 336 538 862 1206 1243 1427 187 1050 436 1271 Wait 1879 | . 364 4 . 81 12 7 85 1 134 66 45 13 36 79 135 20 176 43 87 74 97 144 2 65 21 88 Move 14316 | 11 716 219 107 559 637 327 580 225 629 636 692 630 805 713 495 261 116 410 656 863 848 1007 161 726 342 945 Hop . | . . . . . . . . . . . . . . . . . . . . . . . . . . . Pick Up 268 | 1 15 1 . 9 4 2 8 4 10 5 10 8 39 5 16 2 5 3 19 19 23 19 1 22 6 12 Fast Attach 192 | 1 2 . . 8 . . 5 2 6 7 5 6 14 11 7 3 2 3 7 11 19 26 6 19 3 19 Attach 136 | 2 . 2 . 4 1 1 4 2 12 2 3 3 23 6 . 1 . 1 4 19 11 17 1 6 2 9 Detach 46 | . 1 . . 3 . . 1 . 3 2 . . 9 5 1 . . . . 6 5 3 . 2 . 5 Swap 277 | . 8 6 3 10 9 5 10 12 24 4 16 17 13 16 12 2 4 9 9 17 7 18 . 13 5 28 Drop 350 | 2 10 . 1 17 2 2 11 4 10 10 10 11 45 8 22 4 9 6 22 12 34 34 7 31 8 18 Fire 1746 | 6 49 27 2 19 51 26 58 10 70 32 140 74 133 72 43 19 24 61 58 173 167 147 8 96 48 133 Melee 25 | . . . . . . . . . . . . . 20 . . . . . . . . . . 4 . 1 Ram . | . . . . . . . . . . . . . . . . . . . . . . . . . . . Kick . | . . . . . . . . . . . . . . . . . . . . . . . . . . . Crush 124 | . 8 . 1 2 . 3 . . . 5 . 2 . 10 . 2 . 1 . 11 . 11 . 64 1 3 Escape Stasis 14 | . . . . . . . . . 2 . 2 . 2 . . . . . . . . . . . . 8 Rewire 72 | . . . . . . . . . . 5 26 . . 1 . . . 1 . 1 32 1 1 2 . 2 Trap . | . . . . . . . . . . . . . . . . . . . . . . . . . . . Miscellaneous . | . . . . . . . . . . . . . . . . . . . . . . . . . . . Route ------- -11/Scrapyard -10/Materials (discovered 6 exits: *Mat x3 / [*Min x2] / [*Sub]) -9/Materials (discovered 2 exits: *Mat / [*Min]) -9/Mines -8/Materials (discovered 4 exits: *Fac x3 / Gar) -8/Garrison (discovered 3 exits: *Mat x3) -8/Materials (discovered 2 exits: *Fac / Gar) -8/Garrison (discovered 3 exits: *Fac x3) -7/Factory (discovered 2 exits: Fac / Gar) -7/Garrison (discovered 4 exits: *Fac x4) -7/Factory (discovered 3 exits: *Fac / [*Low] / Gar) -7/Garrison (discovered 3 exits: *Fac x3) -6/Factory (discovered 4 exits: *Fac x2 / [*Low] / Gar) -6/Garrison (discovered 3 exits: *Fac x3) -5/Factory (discovered 3 exits: [*Upp x2] / Gar) -5/Garrison (discovered 3 exits: *Fac x3) -4/Factory -4/Waste -4/Factory -4/Garrison (discovered 3 exits: *Res x3) -3/Research (discovered 5 exits: *Res x2 / *Qua x2 / Gar) -3/Garrison (discovered 3 exits: *Res x3) -2/Research (discovered 3 exits: *Acc / *Tes x2) -2/Testing -2/Garrison (discovered 3 exits: *Acc x3) -1/Access -1/Command (discovered 2 exits: [*Sur x2]) 0b11 Command History --------- Turn | Location | Event 14 | -11/Scrapyard | Discovered new exit (range 2) 42 | -11/Scrapyard | Entered Materials 307 | -10/Materials | Build established: Mutant 538 | -10/Materials | Discovered new exit (range 10) 934 | -10/Materials | Discovered new exit (range 10) 1014 | -10/Materials | Discovered new exit (range 15) 1269 | -10/Materials | Discovered new exit (range 11) 1376 | -10/Materials | Discovered new exit (range 16) 1493 | -10/Materials | Discovered new exit (range 9) 1721 | -10/Materials | Prayed at D.C.S.S. Altar Unit 1735 | -10/Materials | X0-1V1 added 0b10 threat records associated with you (minor) 1739 | -10/Materials | Entered another Materials area 1739 | -9/Materials | Evolved 2 slots: Propulsion x1, Weapon x1 1876 | -9/Materials | Heat dissipation permanently improved by X0-1V1 (+25; -125 max core) 2008 | -9/Materials | Build established: Gunner 2010 | -9/Materials | Discovered new exit (range 4) 2104 | -9/Materials | Discovered new exit (range 8) 2192 | -9/Materials | Entered Mines 2325 | -9/Mines | Assisted by bots powering up and referring to "LRC-V3" 2360 | -9/Mines | Discovered new exit (range 6) 2373 | -9/Mines | Entered Materials 2373 | -8/Materials | Accompanied by 3 allies 2373 | -8/Materials | Evolved 2 slots: Propulsion x1, Utility x1 2497 | -8/Materials | X0-1V1 foreshadows a heat wave 2561 | -8/Materials | Melee accuracy permanently improved by X0-1V1 (+9%; -90 max core) 2691 | -8/Materials | Build established: Tank 2708 | -8/Materials | Ambient heat levels rising (+10) 2754 | -8/Materials | Discovered new exit (range 8) 2943 | -8/Materials | Lost 3 allies 2973 | -8/Materials | Ambient heat levels rising (+10) 3108 | -8/Materials | Discovered new exit (range 10) 3221 | -8/Materials | Ambient heat levels falling (-10) 3253 | -8/Materials | Identified exit to Factory 3253 | -8/Materials | X0-1V1 revealed exit location to -7/Factory 3357 | -8/Materials | X0-1V1 added 0b10 threat records associated with you (considerable) 3373 | -8/Materials | X0-1V1 vaporized surrounding terrain (radius 19) 3390 | -8/Materials | Ambient heat levels falling (-10) 3467 | -8/Materials | Identified exit to Garrison 3467 | -8/Materials | Entered Garrison 3467 | -8/Garrison | Warlord forces raided the area 3536 | -8/Garrison | Triggered checkpoint 3547 | -8/Garrison | Triggered checkpoint 3583 | -8/Garrison | X0-1V1 sent you into danger 3585 | -8/Garrison | Triggered checkpoint 3603 | -8/Garrison | Triggered checkpoint 3626 | -8/Garrison | Destroyed 12 combat bots 3636 | -8/Garrison | Garrison Relay disabled 3691 | -8/Garrison | Discovered new exit (range 14) 3808 | -8/Garrison | Warlord forces retreated 3941 | -8/Garrison | Identified exit to Materials 3941 | -8/Garrison | X0-1V1 revealed exit location to -8/Materials 4033 | -8/Garrison | Triggered checkpoint 4111 | -8/Garrison | Phase Generator disabled 4130 | -8/Garrison | Discovered exit to Materials (range 10) 4159 | -8/Garrison | Installed Relay Interface Framework 4217 | -8/Garrison | Triggered checkpoint 4241 | -8/Garrison | X0-1V1 sent hostile B-36 Bruiser (x2) 4283 | -8/Garrison | Triggered checkpoint 4314 | -8/Garrison | Utility slot count permanently improved by X0-1V1 (+1) 4346 | -8/Garrison | Rescued a captive Derelict 4347 | -8/Garrison | Rescued a captive Derelict 4609 | -8/Garrison | Entered Materials 4609 | -8/Materials | Accompanied by 2 allies 4617 | -8/Materials | Identified exit to Garrison 4807 | -8/Materials | Garrison activated, responded to threat 4999 | -8/Materials | Discovered exit to Factory (range 5) 5201 | -8/Materials | Entered Garrison 5201 | -8/Garrison | Accompanied by 1 ally 5232 | -8/Garrison | Triggered checkpoint 5255 | -8/Garrison | Garrison Relay disabled 5336 | -8/Garrison | X0-1V1 revealed exit location to -7/Factory 5411 | -8/Garrison | Triggered checkpoint 5414 | -8/Garrison | Triggered checkpoint 5568 | -8/Garrison | Build established: Bothacker-Tank 5623 | -8/Garrison | Discovered exit to Factory (range 12) 5660 | -8/Garrison | X0-1V1 upgraded hostiles (x1) 5704 | -8/Garrison | Expanded RIF knowledge: Coupler Efficiency 5724 | -8/Garrison | Phase Generator disabled 5769 | -8/Garrison | Triggered checkpoint 5857 | -8/Garrison | Garrison Relay disabled 5905 | -8/Garrison | Triggered checkpoint 5987 | -8/Garrison | X0-1V1 revealed exit location to -7/Factory 6106 | -8/Garrison | Garrison Relay disabled 6123 | -8/Garrison | Triggered checkpoint 6243 | -8/Garrison | Triggered checkpoint 6282 | -8/Garrison | Expanded RIF knowledge: Zone Cloak 6292 | -8/Garrison | Garrison Relay disabled 6366 | -8/Garrison | Entered Factory 6366 | -7/Factory | Accompanied by 1 ally 6366 | -7/Factory | Evolved 2 slots: Utility x2 6702 | -7/Factory | Identified exit to Factory 6702 | -7/Factory | X0-1V1 revealed exit location to -6/Factory 6739 | -7/Factory | Identified exit to Garrison 6765 | -7/Factory | Entered Garrison 6765 | -7/Garrison | Accompanied by 3 allies 6773 | -7/Garrison | Triggered checkpoint 6803 | -7/Garrison | X0-1V1 sent allied Chaos Knight (x1) 6840 | -7/Garrison | Expanded RIF knowledge: Watcher Feeds 6940 | -7/Garrison | Triggered checkpoint 6977 | -7/Garrison | Garrison Relay disabled 7021 | -7/Garrison | Triggered checkpoint 7031 | -7/Garrison | Destroyed Ashenzari 7061 | -7/Garrison | X0-1V1 mutated your Utility slot to Power slot 7078 | -7/Garrison | Destroyed 14 combat bots 7150 | -7/Garrison | Triggered checkpoint 7160 | -7/Garrison | X0-1V1 destroyed Phase Generator 7160 | -7/Garrison | Phase Generator disabled 7188 | -7/Garrison | Garrison Relay disabled 7220 | -7/Garrison | Discovered new exit (range 7) 7294 | -7/Garrison | P-60 Hacker assimilated allied Guardian 4b 7330 | -7/Garrison | Expanded RIF knowledge: Alert ID Control 7460 | -7/Garrison | Heavy support dispatched to Factory 7491 | -7/Garrison | Build established: Botlord-Tank 7637 | -7/Garrison | System corruption reached 10% 7715 | -7/Garrison | Discovered new exit (range 61) 7715 | -7/Garrison | Discovered new exit (range 13) 7715 | -7/Garrison | Discovered new exit (range 42) 7715 | -7/Garrison | Discovered new exit (range 19) 7777 | -7/Garrison | Triggered checkpoint 7835 | -7/Garrison | H-XX Assembler disabled 7980 | -7/Garrison | X0-1V1 mutated your Weapon slot to Propulsion slot 8079 | -7/Garrison | Triggered checkpoint 8124 | -7/Garrison | Entered Factory 8124 | -7/Factory | Accompanied by 2 allies 8267 | -7/Factory | Discovered new exit (range 8) 8284 | -7/Factory | Build established: Botlord-Mutant 8754 | -7/Factory | X0-1V1 mutated your Propulsion slot to Utility slot 8852 | -7/Factory | Build established: Bothacker-Mutant 8879 | -7/Factory | P-60 Hacker assimilated allied Administrator 4a 9111 | -7/Factory | Fabricated Hyp. Gauss Cannon (x2) 9163 | -7/Factory | Discovered exit to Factory (range 4) 9351 | -7/Factory | Identified exit to Garrison 9351 | -7/Factory | Entered Garrison 9351 | -7/Garrison | Accompanied by 5 allies 9402 | -7/Garrison | Expanded RIF knowledge: Zone Cloak 9508 | -7/Garrison | Garrison Relay disabled 9663 | -7/Garrison | Triggered checkpoint 9667 | -7/Garrison | Triggered checkpoint 9716 | -7/Garrison | Triggered checkpoint 9723 | -7/Garrison | Triggered checkpoint 9797 | -7/Garrison | Build established: Botlord-Mutant 9799 | -7/Garrison | Triggered checkpoint 10052 | -7/Garrison | Discovered exit to Factory (range 10) 10146 | -7/Garrison | Lost 3 parts (1p1n1w) 10245 | -7/Garrison | X0-1V1 vaporized surrounding terrain (radius 24) 10252 | -7/Garrison | X0-1V1 rewrote Trooper 4c IFF filter 10429 | -7/Garrison | Discovered exit to Factory (range 8) 10491 | -7/Garrison | Triggered checkpoint 10536 | -7/Garrison | Lost 3 allies 10553 | -7/Garrison | Garrison Relay disabled 10680 | -7/Garrison | Discovered exit to Factory (range 12) 10721 | -7/Garrison | Triggered checkpoint 10817 | -7/Garrison | Garrison Relay disabled 10835 | -7/Garrison | X0-1V1 vaporized surrounding terrain (radius 24) 10836 | -7/Garrison | Rescued a captive Derelict 10836 | -7/Garrison | Rescued a captive Derelict 10902 | -7/Garrison | Entered Factory 10902 | -6/Factory | Accompanied by 7 allies 10902 | -6/Factory | Evolved 2 slots: Propulsion x1, Utility x1 11294 | -6/Factory | Garrison activated, responded to threat 11322 | -6/Factory | Lost 4 allies 11430 | -6/Factory | Found Hvy. Reflective Plating 11506 | -6/Factory | Discovered new exit (range 15) 11727 | -6/Factory | Expanded RIF knowledge: Program Shield 11750 | -6/Factory | Spotted B-75 Beast 11775 | -6/Factory | Allies destroyed B-75 Beast 11802 | -6/Factory | Lost 3 allies 12068 | -6/Factory | Discovered new exit (range 14) 12106 | -6/Factory | Discovered new exit (range 21) 12159 | -6/Factory | Identified exit to Garrison 12159 | -6/Factory | Entered Garrison 12159 | -6/Garrison | Accompanied by 3 allies 12293 | -6/Garrison | Found embedded Infiltrators 12327 | -6/Garrison | H-XX Assembler disabled 12467 | -6/Garrison | Build established: Bothacker-Mutant 12478 | -6/Garrison | Garrison Relay disabled 12479 | -6/Garrison | System corruption reached 10% 12568 | -6/Garrison | Triggered checkpoint 12573 | -6/Garrison | Garrison Relay disabled 12631 | -6/Garrison | X0-1V1 sent hostile G-50 Soldier (x5) 12719 | -6/Garrison | Triggered checkpoint 12744 | -6/Garrison | Triggered checkpoint 12753 | -6/Garrison | Triggered checkpoint 12782 | -6/Garrison | Build established: Botlord-Mutant 12787 | -6/Garrison | System corruption reached 30% 12914 | -6/Garrison | Rescued a captive Derelict 12916 | -6/Garrison | Rescued a captive Derelict 12933 | -6/Garrison | Triggered checkpoint 12948 | -6/Garrison | Garrison Relay disabled 13136 | -6/Garrison | Discovered new exit (range 13) 13262 | -6/Garrison | Discovered new exit (range 16) 13338 | -6/Garrison | Found Unknown Device 13338 | -6/Garrison | Identified Quantum Capacitor 13411 | -6/Garrison | Spotted Striker 13413 | -6/Garrison | Spotted Striker 13460 | -6/Garrison | Destroyed Striker 13466 | -6/Garrison | Destroyed Striker 13475 | -6/Garrison | Lost 3 allies 13555 | -6/Garrison | Triggered checkpoint 13614 | -6/Garrison | Expanded RIF knowledge: Structural Interface 13626 | -6/Garrison | Garrison Relay disabled 13703 | -6/Garrison | Triggered checkpoint 13833 | -6/Garrison | Core integrity restored by X0-1V1 (+114) 13839 | -6/Garrison | X0-1V1 destroyed Phase Generator 13839 | -6/Garrison | Phase Generator disabled 13870 | -6/Garrison | X0-1V1 turns hostiles against one another 13874 | -6/Garrison | Triggered checkpoint 13926 | -6/Garrison | Garrison Relay disabled 13975 | -6/Garrison | Discovered new exit (range 13) 13994 | -6/Garrison | Entered Factory 13994 | -5/Factory | Evolved 2 slots: Utility x1, Weapon x1 14291 | -5/Factory | Build established: Botlord-Tank 14316 | -5/Factory | Fabricated M-28 Smith (x1) 14751 | -5/Factory | Cargo convoy interrupted 14755 | -5/Factory | Discovered new exit (range 6) 14930 | -5/Factory | Found Prototype Device 14930 | -5/Factory | Identified Femtoactuators 14991 | -5/Factory | Found Prototype Device 14991 | -5/Factory | Identified Exp. Focal Shield 15375 | -5/Factory | Discovered new exit (range 10) 15412 | -5/Factory | Identified exit to Garrison 15423 | -5/Factory | Entered Garrison 15423 | -5/Garrison | Accompanied by 8 allies 15465 | -5/Garrison | Identified exit to Factory 15465 | -5/Garrison | X0-1V1 revealed exit location to -4/Factory 15618 | -5/Garrison | Triggered checkpoint 15641 | -5/Garrison | Garrison Relay disabled 15718 | -5/Garrison | Triggered checkpoint 15727 | -5/Garrison | Triggered checkpoint 15745 | -5/Garrison | Triggered checkpoint 15752 | -5/Garrison | Triggered checkpoint 15756 | -5/Garrison | Heavy support dispatched to Factory 15767 | -5/Garrison | Heavy support dispatched to Factory 15961 | -5/Garrison | H-XX Assembler disabled 16006 | -5/Garrison | Discovered exit to Factory (range 5) 16029 | -5/Garrison | Triggered checkpoint 16050 | -5/Garrison | Found embedded Infiltrators 16085 | -5/Garrison | Discovered exit to Factory (range 25) 16085 | -5/Garrison | Discovered exit to Factory (range 36) 16085 | -5/Garrison | Discovered exit to Factory (range 65) 16093 | -5/Garrison | Garrison Relay disabled 16207 | -5/Garrison | Expanded RIF knowledge: Crosswire 16298 | -5/Garrison | Found Relay Coupler [Proto] 16300 | -5/Garrison | Found Relay Coupler [Proto] 16304 | -5/Garrison | Found Relay Coupler [Proto] 16307 | -5/Garrison | Found Relay Coupler [Proto] 16379 | -5/Garrison | Triggered checkpoint 16416 | -5/Garrison | Garrison Relay disabled 16483 | -5/Garrison | Entered Factory 16483 | -4/Factory | Accompanied by 13 allies 16483 | -4/Factory | Evolved 2 slots: Utility x2 16770 | -4/Factory | X0-1V1 activates XOMVISION 16972 | -4/Factory | Manually triggered Chute Trap 16972 | -4/Factory | Sucked down chute 16972 | -4/Factory | Entered Waste 16979 | -4/Waste | Spotted C-40 Crusher 16986 | -4/Waste | Destroyed C-40 Crusher 16991 | -4/Waste | Destroyed C-40 Crusher 17018 | -4/Waste | Spotted C-40 Crusher 17025 | -4/Waste | Spotted C-40 Crusher 17040 | -4/Waste | Allies destroyed C-40 Crusher 17047 | -4/Waste | Destroyed C-40 Crusher 17052 | -4/Waste | Spotted C-40 Crusher 17060 | -4/Waste | Destroyed C-40 Crusher 17066 | -4/Waste | Spotted C-40 Crusher 17070 | -4/Waste | Allies destroyed C-40 Crusher 17102 | -4/Waste | 4 allies followed down the chute 17247 | -4/Waste | 11 allies followed down the chute 17332 | -4/Waste | Discovered new exit (range 12) 17403 | -4/Waste | Entered Factory 17403 | -4/Factory | Accompanied by 15 allies 17623 | -4/Factory | X0-1V1 rewrote Sentinel 6a IFF filter 17814 | -4/Factory | Lost 5 allies 17865 | -4/Factory | X0-1V1 rewrote Marshal 6a IFF filter 17936 | -4/Factory | Spotted B-86 Titan 17940 | -4/Factory | Assimilated Titan 7a with formatsys_high 17942 | -4/Factory | X0-1V1 activates XOMVISION 17965 | -4/Factory | Lost 9 allies 18204 | -4/Factory | Identified exit to Garrison 18204 | -4/Factory | Entered Garrison 18204 | -4/Garrison | Accompanied by 2 allies 18231 | -4/Garrison | Triggered checkpoint 18306 | -4/Garrison | Expanded RIF knowledge: Autooverride 18463 | -4/Garrison | Triggered checkpoint 18470 | -4/Garrison | Garrison Relay disabled 18574 | -4/Garrison | Spotted B-86 Titan 18580 | -4/Garrison | Destroyed B-86 Titan 18614 | -4/Garrison | Triggered checkpoint 18619 | -4/Garrison | Triggered checkpoint 18627 | -4/Garrison | Triggered checkpoint 18628 | -4/Garrison | Triggered checkpoint 18731 | -4/Garrison | Identified exit to Research 18731 | -4/Garrison | X0-1V1 revealed exit location to -3/Research 18735 | -4/Garrison | Garrison Relay disabled 18760 | -4/Garrison | Triggered checkpoint 18780 | -4/Garrison | X0-1V1 mutated your Utility slot to Propulsion slot 18798 | -4/Garrison | Discovered exit to Research (range 2) 18939 | -4/Garrison | Triggered checkpoint 18946 | -4/Garrison | Garrison Relay disabled 19030 | -4/Garrison | Triggered checkpoint 19046 | -4/Garrison | X0-1V1 revealed exit location to -3/Research 19170 | -4/Garrison | Expanded RIF knowledge: Code Merge 19189 | -4/Garrison | Triggered checkpoint 19247 | -4/Garrison | Garrison Relay disabled 19319 | -4/Garrison | Spotted B-86 Titan 19331 | -4/Garrison | Destroyed B-86 Titan 19446 | -4/Garrison | Entered Research 19446 | -3/Research | Accompanied by 7 allies 19446 | -3/Research | Evolved 2 slots: Utility x2 19500 | -3/Research | Discovered new exit (range 15) 19532 | -3/Research | X0-1V1 rewrote 7O-5IK(h) IFF filter 19598 | -3/Research | Garrison activated, responded to threat 19643 | -3/Research | Spotted B-86 Titan 19649 | -3/Research | Allies destroyed B-86 Titan 19680 | -3/Research | Lost 3 allies 19696 | -3/Research | First assault squad dispatched 19964 | -3/Research | Identified exit to Quarantine 19964 | -3/Research | X0-1V1 revealed exit location to -3/Quarantine 20011 | -3/Research | Lost 3 allies 20347 | -3/Research | Discovered exit to Quarantine (range 36) 20376 | -3/Research | Found Spectral Analyzer 20394 | -3/Research | Cargo convoy interrupted 20446 | -3/Research | Lost 4 parts (2p2u) 20482 | -3/Research | Lost 9 allies 20516 | -3/Research | X0-1V1 whisked you away to safety 20542 | -3/Research | Found Quantum Capacitor 20978 | -3/Research | X0-1V1 activates XOMVISION 20997 | -3/Research | Found Prototype Device 20997 | -3/Research | Identified Exp. Cloaking Device 21005 | -3/Research | Found Prototype Hackware 21014 | -3/Research | Found Prototype Device 21014 | -3/Research | Identified Adv. EM Shield 21160 | -3/Research | System corruption reached 10% 21172 | -3/Research | Discovered new exit (range 13) 21178 | -3/Research | X0-1V1 sent hostile Thug (x2) 21211 | -3/Research | Identified exit to Garrison 21211 | -3/Research | Entered Garrison 21245 | -3/Garrison | X0-1V1 destroyed Phase Generator 21245 | -3/Garrison | Phase Generator disabled 21333 | -3/Garrison | Spotted B-75 Beast 21457 | -3/Garrison | Triggered checkpoint 21472 | -3/Garrison | Garrison Relay disabled 21628 | -3/Garrison | Rewired B-90 Cyclops 21655 | -3/Garrison | Allies destroyed B-75 Beast 21667 | -3/Garrison | Spotted B-90 Cyclops 21682 | -3/Garrison | Discovered new exit (range 0) 21682 | -3/Garrison | X0-1V1 whisked you away to safety 21891 | -3/Garrison | Triggered checkpoint 21918 | -3/Garrison | Garrison Relay disabled 21982 | -3/Garrison | Spotted B-86 Titan 21984 | -3/Garrison | Triggered checkpoint 21989 | -3/Garrison | Assimilated Titan 8a with formatsys_high 21992 | -3/Garrison | Triggered checkpoint 22006 | -3/Garrison | Triggered checkpoint 22010 | -3/Garrison | Triggered checkpoint 22039 | -3/Garrison | Lost 3 allies 22046 | -3/Garrison | Garrison Relay disabled 22072 | -3/Garrison | Triggered checkpoint 22115 | -3/Garrison | Discovered new exit (range 13) 22260 | -3/Garrison | P-80 Master assimilated allied PH-8ZW(b) 22274 | -3/Garrison | Found Relay Coupler [Proto] 22276 | -3/Garrison | Found Relay Coupler [Proto] 22347 | -3/Garrison | Assimilated Cyclops 8b with formatsys_high 22353 | -3/Garrison | Rewired B-90 Cyclops 22593 | -3/Garrison | Triggered checkpoint 22625 | -3/Garrison | Identified exit to Research 22625 | -3/Garrison | X0-1V1 revealed exit location to -2/Research 22631 | -3/Garrison | Lost 3 allies 22657 | -3/Garrison | Expanded RIF knowledge: Patrol Navigation 22678 | -3/Garrison | Triggered checkpoint 22723 | -3/Garrison | Garrison Relay disabled 22985 | -3/Garrison | Entered Research 22985 | -2/Research | Accompanied by 3 allies 22985 | -2/Research | Evolved 2 slots: Power x1, Utility x1 22998 | -2/Research | Identified Exp. System Shield 23163 | -2/Research | X0-1V1 rewrote Cyclops 8c IFF filter 23164 | -2/Research | Spotted Cyclops 8c 23184 | -2/Research | Allies destroyed Cyclops 8c 23220 | -2/Research | X0-1V1 sent you into danger 23221 | -2/Research | Garrison activated, responded to threat 23270 | -2/Research | Spotted B-90 Cyclops 23276 | -2/Research | Assimilated Cyclops 9a with formatsys_high 23357 | -2/Research | Forcibly received Sfc. Transmogifier from X0-1V1 23437 | -2/Research | Fabricated H-88 Terminator? 23516 | -2/Research | X0-1V1 sent you into danger 23523 | -2/Research | Spotted B-90 Cyclops 23524 | -2/Research | Assimilated Cyclops 9b with formatsys_high 23575 | -2/Research | Discovered new exit (range 40) 23578 | -2/Research | Lost 5 allies 23590 | -2/Research | Identified exit to Testing 23590 | -2/Research | Watched by a mysterious "MATRIX" hacker 23618 | -2/Research | X0-1V1 rewrote Cyclops 9b IFF filter 23619 | -2/Research | Assimilated Cyclops 9b with formatsys_high 23879 | -2/Research | Lost 3 allies 23960 | -2/Research | Discovered new exit (range 14) 23970 | -2/Research | Lost 3 allies 24107 | -2/Research | X0-1V1 redirected Transport squads to designated parking area 24479 | -2/Research | X0-1V1 turns hostiles against one another 24540 | -2/Research | Garrison activated, responded to threat 24549 | -2/Research | X0-1V1 whisked you away to safety 24606 | -2/Research | X0-1V1 sent you to a vault 24615 | -2/Research | Found Prototype Device 24615 | -2/Research | Identified Exp. EM Shield 24618 | -2/Research | Found Prototype Device 24618 | -2/Research | Identified Active Sensor Suite 24627 | -2/Research | Found Prototype Device 24627 | -2/Research | Identified Thermal Barrier 24631 | -2/Research | Found Adv. Powered Armor 24635 | -2/Research | Found Prototype Reactor 24635 | -2/Research | Identified Zero-point Reactor 24675 | -2/Research | Found Prototype Energy Cannon 24675 | -2/Research | Identified YOLO Cannon 24689 | -2/Research | Found Prototype Processor 24689 | -2/Research | Identified Exp. Armor Integrity Analyzer 24763 | -2/Research | Found Thermal Barrier 24902 | -2/Research | Spotted B-90 Cyclops 24905 | -2/Research | Assimilated Cyclops 9c with formatsys_high 25138 | -2/Research | Fabricated M-28 Smith (x1) 25169 | -2/Research | X0-1V1 added 0b10 threat records associated with you (major) 25180 | -2/Research | Entered Testing 25180 | -2/Testing | Accompanied by 5 allies 25238 | -2/Testing | Found Prototype Ballistic Cannon 25238 | -2/Testing | Identified Perforator 25346 | -2/Testing | X0-1V1 sent you to a vault 25415 | -2/Testing | Rewired PH-WMVGZG70KL 25429 | -2/Testing | Garrison activated, responded to threat 25443 | -2/Testing | Identified exit to Garrison 25450 | -2/Testing | Entered Garrison 25450 | -2/Garrison | Accompanied by 7 allies 25452 | -2/Garrison | Triggered checkpoint 25499 | -2/Garrison | System corruption reached 10% 25509 | -2/Garrison | Lost 8 allies 25513 | -2/Garrison | Found Relay Coupler [Proto] 25516 | -2/Garrison | Found Relay Coupler [Proto] 25523 | -2/Garrison | Found Relay Coupler [Proto] 25527 | -2/Garrison | Found Relay Coupler [Proto] 25590 | -2/Garrison | Triggered checkpoint 25648 | -2/Garrison | Garrison Relay disabled 25729 | -2/Garrison | Spotted B-90 Cyclops 25732 | -2/Garrison | Assimilated Cyclops 9d with formatsys_high 25740 | -2/Garrison | Triggered checkpoint 25757 | -2/Garrison | Triggered checkpoint 25764 | -2/Garrison | Triggered checkpoint 25772 | -2/Garrison | Triggered checkpoint 25872 | -2/Garrison | Identified exit to Access 25872 | -2/Garrison | X0-1V1 revealed exit location to -1/Access 25880 | -2/Garrison | X0-1V1 mutated your Propulsion slot to Weapon slot 25900 | -2/Garrison | Triggered checkpoint 25956 | -2/Garrison | Garrison Relay disabled 26010 | -2/Garrison | Discovered exit to Access (range 4) 26122 | -2/Garrison | Rescued a captive Derelict 26149 | -2/Garrison | Q-Series assembled to engage unique threat in Access 26227 | -2/Garrison | Spotted B-90 Cyclops 26266 | -2/Garrison | X0-1V1 destroyed Phase Generator 26266 | -2/Garrison | Phase Generator disabled 26353 | -2/Garrison | Garrison Relay disabled 26472 | -2/Garrison | Found Exp. Armor Integrity Analyzer 26527 | -2/Garrison | Expanded RIF knowledge: Command Fork 26564 | -2/Garrison | QS Assembler disabled 26581 | -2/Garrison | X0-1V1 vaporized surrounding terrain (radius 19) 26586 | -2/Garrison | X0-1V1 activates XOMVISION 26611 | -2/Garrison | Found Prototype Launcher 26611 | -2/Garrison | Identified Gui. Micro-nuke Launcher 26658 | -2/Garrison | Triggered checkpoint 26724 | -2/Garrison | Triggered checkpoint 26746 | -2/Garrison | Garrison Relay disabled 26867 | -2/Garrison | Triggered checkpoint 26974 | -2/Garrison | Garrison Relay disabled 27012 | -2/Garrison | Discovered exit to Access (range 13) 27045 | -2/Garrison | Entered Access 27045 | -1/Access | Accompanied by 5 allies 27045 | -1/Access | Evolved 2 slots: Propulsion x1, Utility x1 27149 | -1/Access | Central database locked down 27280 | -1/Access | Garrison activated, responded to threat 27283 | -1/Access | Lost 3 allies 27305 | -1/Access | X0-1V1 destroyed Energy Cycler 27305 | -1/Access | Energy Cycler disabled 27674 | -1/Access | Discovered new exit (range 8) 27690 | -1/Access | Entered Command 27690 | -1/Command | Accompanied by 6 allies 28092 | -1/Command | X0-1V1 mutated your Propulsion slot to Utility slot 28094 | -1/Command | X0-1V1 rewrote Terminator 10h IFF filter 28452 | -1/Command | Spotted M Guard 28454 | -1/Command | Spotted M Guard 28454 | -1/Command | Spotted Combat Programmer 28454 | -1/Command | Spotted Combat Programmer 28469 | -1/Command | Destroyed Combat Programmer 28472 | -1/Command | System corruption reached 10% 28499 | -1/Command | Destroyed Combat Programmer 28502 | -1/Command | Assimilated M Guard with formatsys_high 28649 | -1/Command | Found Prototype Device 28649 | -1/Command | Identified Exp. ECM Suite 28650 | -1/Command | X0-1V1 activates XOMVISION 28916 | -1/Command | Spotted Executioner 28916 | -1/Command | Spotted Executioner 28916 | -1/Command | Spotted Striker 28916 | -1/Command | Spotted Alpha 7 28916 | -1/Command | Spotted Executioner 28916 | -1/Command | Spotted Executioner 28916 | -1/Command | Spotted Striker 28916 | -1/Command | Spotted Alpha 7 28917 | -1/Command | Spotted B-99 Colossus 28918 | -1/Command | Assimilated Alpha 7 with formatsys_high 28920 | -1/Command | Assimilated Alpha 7 with formatsys_high 28920 | -1/Command | Assimilated Striker with formatsys_high 28921 | -1/Command | Assimilated Executioner with formatsys_high 28922 | -1/Command | Assimilated Executioner with formatsys_high 28922 | -1/Command | Spotted B-99 Colossus 28925 | -1/Command | Assimilated Executioner with formatsys_high 28942 | -1/Command | Allies destroyed B-99 Colossus 28946 | -1/Command | Allies destroyed B-99 Colossus 28975 | -1/Command | Found Prototype Processor 28975 | -1/Command | Identified Exp. Core Analyzer 28977 | -1/Command | Lost 3 allies 28978 | -1/Command | Found Exp. Core Analyzer 28985 | -1/Command | Discovered new exit (range 9) 28986 | -1/Command | Found Corrupted Prototype Ballistic Gun 28986 | -1/Command | Identified Multirail 28993 | -1/Command | Found Multirail 29027 | -1/Command | Found Multirail 29028 | -1/Command | X0-1V1 sent you to a vault 29036 | -1/Command | Found Multirail 29049 | -1/Command | Found Prototype Device 29049 | -1/Command | Identified Adv. Particle Accelerator 29071 | -1/Command | X0-1V1 activates XOMVISION 29280 | -1/Command | Found Prototype Special Weapon 29280 | -1/Command | Identified Gui. Remote Datajack 29289 | -1/Command | Found Prototype Launcher 29289 | -1/Command | Identified Ragnarok Missile Launcher 29296 | -1/Command | Found Unknown Special Melee Weapon 29296 | -1/Command | Identified Chaos Jack 29342 | -1/Command | Build established: Scavenger-Tank 29496 | -1/Command | Found Terrabomb 29496 | -1/Command | Used Terrabomb 29521 | -1/Command | Met MAIN.C 29525 | -1/Command | 0b10 Conduit disabled 29545 | -1/Command | Destroyed MAIN.C Shell 29548 | -1/Command | MAIN.C activated Command garrisons 29561 | -1/Command | Destroyed MAIN.C 29661 | -1/Command | Destroyed 17 combat bots 29702 | -1/Command | All MAIN.C guards destroyed 29716 | -1/Command | Spotted B-99 Colossus 29731 | -1/Command | X0-1V1 sent allied Executioner (x3) 29736 | -1/Command | Allies destroyed B-99 Colossus 29745 | -1/Command | Discovered new exit (range 47) 29745 | -1/Command | Discovered new exit (range 93) 29745 | -1/Command | Extracted map data and part IDs from MAIN.C's data core 29878 | *** | Establishing 0b11! Last Messages --------------- and part IDs. 29747_ Acquired 29 matter. 29759_ Slug penetrates 0b10 Conduit. 29762_ Slug penetrates Executioner. 29766_ System corrupted: Matter fused (-7). 29766_ Slug penetrates Executioner. X0-1V1's Piety Tracker suddenly appears amidst shimmering waves of color. 29769_ Acquired 7 matter. 29791_ K-01 Serf collects debris. 29802_ System corrupted: Matter fused (-6). 29804_ K-01 Serf collects debris. 29819_ Acquired 6 matter. 29820_ K-01 Serf collects debris. X0-1V1's Piety Tracker suddenly appears amidst shimmering waves of color. 29856_ X0-1V1 makes important surrounding features appear closer to you (+2 sight range). 29870_ TJU=WYQS>BZF80,YY| V&A L9C1XTTU2I Map ----- +----------------------------------------------------+ | # ######+##!=!%[##### !!* #######+###### "" | | # ## ##%!###???#######?# #?#?# " | | # ## ##[*#?????????????# #?#?# | | # ## ##*%#?????????????# #?#?###### | | # ## ##!=#?????????????# #?#??????? | | # ## #*%%##????????????# #?######## | | # ## ##==%#????????????# #????????? | | #^^ ########## ##??????########+#####????????? | | ^^ ########## ##??????# #????????? | | %"#??????# #????????? | | [ "#??????# !#????????? | | !% ##??????# #????????? | | % ! ######### #????????? | | [ % % "## ## !!* #????????? | | !=%! ! "" ## !** #????????? | | [ T" ## !* #????????? | | #################+#"## ## ##???????? | | ????????# ## ### #???????? | | ????????# ## #?# ##???????? | | ????????# """ ## #?# #????????? | | ????????# ""T"" ## ############+###########? | | ????????# "" "" ## #? | | ????????# ## #### T#? | | ????????# ## #### [ ######"""##? | | ????????# ## E ## #?####"""##? | | ????????# ##E @ ## #?#[[] =#? | | ????????# ## E ## #?#]]] ! =#? | | ????????# ######## #?#!!! =#? | | ????????# #??????# ! #?#!!!**==#? | | ############################# #?#########? | | #??????????? | | ! #??????????? | | ##################################??????????? | | ###########?????????????????????????????????? | | # #?????????????????????????????????? | | # ! #?????????????????????????????????? | | + #?????????????????????????????????? | | """### #?????????????????????????????????? | | """#?###########?????????????????????????????????? | | ####?????????????????????????????????????????????? | | ?????????????????????????????????????????????????? | | ?????????????????????????????????????????????????? | | ?????????????????????????????????????????????????? | | ?????????????????????????????????????????????????? | | ?????????????????????????????????????????????????? | | ?????????????????????????????????????????????????? | | ?????????????????????????????????????????????????? | | ?????????????????????????????????????????????????? | | ?????????????????????????????????????????????????? | | ?????????????????????????????????????????????????? | +----------------------------------------------------+ Best States ------------- Heat Dissipation 160 Coolant Potential 120 Energy Generation 100 Energy Capacity 2130 Matter Stores 1000 Matter Capacity 1000 Sight Range 29 Robot Scan Range 20 Terrain Scan Density 10 ECM Strength 3 Power Amplification 30 Armor Coverage 2000 Resistance: KI 41 Resistance: TH 50 Resistance: EM 75 Utility Shielding 66 Phase Shifting 15 Evasion (%) 55 Targeting Accuracy 8 Core Analysis 8 Armor Integrity Analysis 50 Recoil Reduction 6 Kinecelleration 40 Defensive Hacking 16 Relay Coupler Types 9 Relay Coupler Value 326 Item Schematics ----------------- Huge Storage Unit | -10/Materials | Hacked Hyp. Gauss Cannon | -7/Factory | Hacked Hrd. Heavy Armor Plating | -7/Factory | Scanalyzed Hvy. Hardcell Cannon | -5/Factory | Scanalyzed Exp. Q-thruster | -2/Garrison | Archive Adv. Gravity Neutralizer | -2/Garrison | Archive Robot Schematics ------------------ M-28 Smith | -8/Materials | Hacked M-36 Artificer | -4/Factory | Hacked Fabricated ------------ Hyp. Gauss Cannon | x2 | -7/Factory M-28 Smith | x1 | -5/Factory H-88 Terminator | x2 | -2/Research | Preloaded M-28 Smith | x1 | -2/Research Repaired ---------- Nothing Studied --------- Com. Wheel | -8/Materials | Hacked Lgt. Treads | -8/Materials | Hacked Remote Datajack | -7/Factory | Hacked Hvy. Assault Cannon | -7/Factory | Hacked Adv. Assault Cannon | -7/Factory | Hacked Imp. Remote Datajack | -3/Research | Hacked Adv. Remote Datajack | -2/Research | Hacked Biometal Heavy Treads | -1/Access | Hacked Alien Tech Used ----------------- Terrabomb Achievements -------------- None Challenges ------------ None Game ------ Seed ExoskeletonStasisTearclaws Manual? 0 Play Time 05:44:34 Cumulative 618.0 hours Start 2026.07.25 @ 23:09:00 End 2026.07.28 @ 04:49:20 Sessions 19 Manual Loads 0 Difficulty Rogue Special Mode None Game No. 551 Rogue 515 Adventurer 36 Explorer 0 Win Type 1 Total 8 Types 2/2/0/1/1/0/0/2/0/0 Lore% 84 Gallery% 74 Achievement% 67 Wizard Run 0 Options --------- Layout 2 ASCII 0 Keyboard 0 Movement Numpad Keybinds 0 Fullscreen 1 Font 48/Smallcaps Map View 50x44 Zoom Use 0% Tactical HUD 1 Map Filters NONE Filters NONE Steam 1 RUN: c41cf3f9-92c1-438d-8271-cac18f768bbb